Workbook

Sheet Содержание
D1: ЗАВОД «ОПК» Тел.: +7 (495) 987-4388 e-mail: info@cryspi.ru сайт: cryspi.ru
B2: Ваша скидка | C2: - | D2: 0
B3: НДС | C3: -
B4: Холодильное оборудование (встроенное холодоснабжение)
B5: Холодильные витрины Cryspi | D5: Морозильные и холодильные лари Italfrost
B6: Витрины со статической системой охлаждения:
B7: Витрины OCTAVA | D7: Морозильные лари с гнутыми раздвижными стеклами
B8: Витрины OCTAVA Quadro | D8: Морозильные лари с прямыми раздвижными стеклами
B9: Витрины OCTAVA XL | D9: Морозильные лари с глухой крышкой
B10: Витрины GAMMA-2 | D10: Морозильные лари с глухой крышкой (крышка из нерж. стали)
B11: Витрины GAMMA-2 Quadro | D11: Морозильные лари с гнутыми раздвижными стеклами (4+)
B12: Витрины GAMMA Quadro Fish | D12: Морозильные лари с прямыми раздвижными стеклами (4+)
B13: Витрины Sonata Quadro
B14: Витрины настольные Vivo 1000
B15: Витрины с динамической системой охлаждения:
B16: Витрины Magnum | D16: Лари для мягкого мороженного
B17: Витрины Magnum ECO
B18: Витрины Magnum Quadro | D18: Морозильные и холодильные лари-бонеты Italfrost
D19: Двухрежимный ЛВН Italfrost
B20: Витрины Cryspi без агрегата (под выносное хладоснабжение) | D20: Двухрежимный ЛВН Italfrost PUSH
B21: Опции и аксессуары для витрин Cryspi | D21: Двухрежимный ЛВН Rondo
B22: Опции и аксессуары для витрин и стеллажей Cryspi
B23: Таблица для расчета нестандартного цвета и исполнений | D23: Низкотемпературные решения Italfrost для предприятий торговли
B24: Кондитерские витрины | D24: Verona. Низкотемпературная надстройка для ларей 400л. NEW
B25: Adagio | D25: CORSA. Низкотемпературная надстройка для ларей-бонет
B26: Elegia | D26: ANZIO. Низкотемпературный шкаф (стеллаж)
B27: Горки | D27: Нестандартные цвета оборудования со встроенным холодоснабжением
B28: Solo L7/L9
B29: Solo L9 Light | D29: Нестандартные цвета оборудования
B30: Solo SML | D30: Нестандартные цвета окраски ларей-бонет и ларей Italfrost
B31: Unit | D31: Брендирование оборудования

Sheet Витрины
H1: ЗАВОД «ОПК» Тел.: +7 (495) 987-4388 e-mail: info@cryspi.ru сайт: cryspi.ru | K1: На главную
C3: Ваша скидка: | E3: =Содержание!D2 -> 0
C4: НДС: | E4: =IF(Лист2!A1=TRUE,"С НДС","БЕЗ НДС") -> С НДС
A7: Витрины Cryspi со встроенным агрегатом. Статическая система охлаждения
A9: - Статическая система охлаждения,, R-290; - Электронный контроллер; - Оттайка для версий ВПС - естественная, для версий ВПСН и ВПН - ТЭН (по умолчанию); - Общее освещение для версий с высоким стеклом - нейтральное (4000К); - Товарный накопитель для линейных модулей (кроме НТ); | F9: - Внутренний объем - оцинкованный металл, внутренний объем в зоне выкладки - нерж.сталь; - Ночные шторки для витрин с высоким стеклом; - Фронтальное стекло закаленное, не открывается; - Емкость для сбора талой воды, опционально возможно применение выпаривателя; - Деревянная усиленная упаковка;
A10: № | B10: Комплектация | C10: Изображение | D10: Наименование | F10: Температурный режим,°C | G10: Площадь экспозиции, кв.м. | H10: Габариты, (LxWxH) мм | I10: Базовая цена, руб. (с НДС) | J10: =[5]Лист2!$A$5 -> Ваша цена, руб.
A12: 1 | B12: Витрины серии OCTAVA, глубина выкладки 660 мм, стандартный Ral 3002. | I12: Опции Octava
D13: =D37 -> Среднетемпературные, ВПС | K13: *нажмите чтобы перейти в список опций
D14: Octava 1200 | F14: 0…+7 | G14: 0.72 | H14: 1180х955х1265 | I14: 69228.896 | J14: =ROUND(I14*(1-$E$3)/Лист2!$A$6,0) -> 69229
D15: Octava 1500 | F15: 0…+7 | G15: 0.92 | H15: 1480х955х1265 | I15: 75097.484 | J15: =ROUND(I15*(1-$E$3)/Лист2!$A$6,0) -> 75097
D16: Octava 1800 | F16: 0…+7 | G16: 1.12 | H16: 1780х955х1265 | I16: 83455.592 | J16: =ROUND(I16*(1-$E$3)/Лист2!$A$6,0) -> 83456
D17: =D41 -> Средне-низкотемпературные, ВПСН
D18: Octava SN 1200 | F18: -6…+6 | G18: 0.72 | H18: 1180х955х1265 | I18: 76965.636 | J18: =ROUND(I18*(1-$E$3)/Лист2!$A$6,0) -> 76966
D19: Octava SN 1500 | F19: -6…+6 | G19: 0.92 | H19: 1480х955х1265 | I19: 86783.048 | J19: =ROUND(I19*(1-$E$3)/Лист2!$A$6,0) -> 86783
D20: Octava SN 1800 | F20: -6…+6 | G20: 1.12 | H20: 1780х955х1265 | I20: 96382.88 | J20: =ROUND(I20*(1-$E$3)/Лист2!$A$6,0) -> 96383
D21: =D45 -> Низкотемпературные, ВПН
D22: Octava M 1200 | F22: -13…-15 | G22: 0.69 | H22: 1180х955х1265 | I22: 82187.556 | J22: =ROUND(I22*(1-$E$3)/Лист2!$A$6,0) -> 82188
D23: Octava M 1500 | F23: -13…-15 | G23: 0.89 | H23: 1480х955х1265 | I23: 94009.74 | J23: =ROUND(I23*(1-$E$3)/Лист2!$A$6,0) -> 94010
D24: Octava M 1800 | F24: -13…-15 | G24: 1.08 | H24: 1780х955х1265 | I24: 103871.68 | J24: =ROUND(I24*(1-$E$3)/Лист2!$A$6,0) -> 103872
D25: Угловые витрины и кассовые прилавки
D26: Octava OC (угол внеш.) | F26: 0…+7 | G26: 0.79 | H26: 1180х1180х1265 | I26: 117506.356 | J26: =ROUND(I26*(1-$E$3)/Лист2!$A$6,0) -> 117506
D27: Octava IC (угол внутр.) | F27: 0…+7 | G27: 0.61 | H27: 1354х1354х1265 | I27: 107019 | J27: =ROUND(I27*(1-$E$3)/Лист2!$A$6,0) -> 107019
D28: Octava КНП 620 ББ | F28: - | G28: - | H28: 620х917х900 | I28: 20418.112 | J28: =ROUND(I28*(1-$E$3)/Лист2!$A$6,0) -> 20418
D29: Octava КНП 700 с боковинами | F29: - | G29: - | H29: 700х924х900 | I29: 28705.38 | J29: =ROUND(I29*(1-$E$3)/Лист2!$A$6,0) -> 28705
D30: Octava КНП 1200 | F30: - | G30: - | H30: 1200х924х900 | I30: 41514.264 | J30: =ROUND(I30*(1-$E$3)/Лист2!$A$6,0) -> 41514
D31: Octava КНП 980 | F31: - | G31: - | H31: 980х924х900 | I31: 36621.244 | J31: =ROUND(I31*(1-$E$3)/Лист2!$A$6,0) -> 36621
D32: Octava КНП OC 90 ББ | F32: - | G32: - | H32: 1592х850х900 | I32: 27598.252 | J32: =ROUND(I32*(1-$E$3)/Лист2!$A$6,0) -> 27598
D33: Octava КНП OC 90 | F33: - | G33: - | H33: 1632х871х900 | I33: 35890.58 | J33: =ROUND(I33*(1-$E$3)/Лист2!$A$6,0) -> 35891
D34: Octava КНП IC 90 ББ | F34: - | G34: - | H34: 1592х850х900 | I34: 27053.796 | J34: =ROUND(I34*(1-$E$3)/Лист2!$A$6,0) -> 27054
D35: Octava КНП IC 90 | F35: - | G35: - | H35: 1632х871х900 | I35: 35347.136 | J35: =ROUND(I35*(1-$E$3)/Лист2!$A$6,0) -> 35347
A36: 2 | B36: Витрины серии OCTAVA Q, глубина выкладки 660 мм, стандартный RAL 7016
D37: Среднетемпературные, ВПС
D38: Octava Q 1200 | F38: 0…+7 | G38: 0.72 | H38: 1180х925х1200 | I38: 73139.264 | J38: =ROUND(I38*(1-$E$3)/Лист2!$A$6,0) -> 73139
D39: Octava Q 1500 | F39: 0…+7 | G39: 0.92 | H39: 1480х925х1200 | I39: 82409.184 | J39: =ROUND(I39*(1-$E$3)/Лист2!$A$6,0) -> 82409
D40: Octava Q 1800 | F40: 0…+7 | G40: 1.12 | H40: 1780х925х1200 | I40: 94241.488 | J40: =ROUND(I40*(1-$E$3)/Лист2!$A$6,0) -> 94241
D41: Средне-низкотемпературные, ВПСН
D42: Octava Q SN 1200 | F42: -6…+6 | G42: 0.72 | H42: 1180х925х1200 | I42: 80384.172 | J42: =ROUND(I42*(1-$E$3)/Лист2!$A$6,0) -> 80384
D43: Octava Q SN 1500 | F43: -6…+6 | G43: 0.92 | H43: 1480х925х1200 | I43: 92067.712 | J43: =ROUND(I43*(1-$E$3)/Лист2!$A$6,0) -> 92068
D44: Octava Q SN 1800 | F44: -6…+6 | G44: 1.12 | H44: 1780х925х1200 | I44: 103659.16 | J44: =ROUND(I44*(1-$E$3)/Лист2!$A$6,0) -> 103659
D45: Низкотемпературные, ВПН
D46: Octava Q M 1200 | F46: -15…-18 | G46: 0.69 | H46: 1180х925х1200 | I46: 90267.364 | J46: =ROUND(I46*(1-$E$3)/Лист2!$A$6,0) -> 90267
D47: Octava Q M 1500 | F47: -15…-18 | G47: 0.89 | H47: 1480х925х1200 | I47: 99529.188 | J47: =ROUND(I47*(1-$E$3)/Лист2!$A$6,0) -> 99529
D48: Octava Q M 1800 | F48: -15…-18 | G48: 1.08 | H48: 1780х925х1200 | I48: 112628.516 | J48: =ROUND(I48*(1-$E$3)/Лист2!$A$6,0) -> 112629
A49: 3 | B49: Витрины серии OCTAVA XL, глубина выкладки 780 мм, стандартный Ral 7016.
B50: Стандартная комплектация: | D50: Среднетемпературные, ВПС
B51: - агрегат | D51: Octava XL 1200 | F51: 0…+7 | G51: 0.93 | H51: 1218х1069х1214 | I51: 73347.736 | J51: =ROUND(I51*(1-$E$3)/Лист2!$A$6,0) -> 73348
B52: - испаритель | D52: Octava XL 1500 | F52: 0…+7 | G52: 1.15 | H52: 1518х1069х1214 | I52: 81186.688 | J52: =ROUND(I52*(1-$E$3)/Лист2!$A$6,0) -> 81187
B53: - шторки из оргстекла | D53: Octava XL 1800 | F53: 0…+7 | G53: 1.4 | H53: 1818х1069х1214 | I53: 92057.592 | J53: =ROUND(I53*(1-$E$3)/Лист2!$A$6,0) -> 92058
B54: - комплект боковин и боковых стекол | D54: Средне-низкотемпературные, ВПСН
B55: - комплект фронтальных стекол | D55: Octava XL SN 1200 | F55: -6…+6 | G55: 0.93 | H55: 1218х1069х1214 | I55: 86392.416 | J55: =ROUND(I55*(1-$E$3)/Лист2!$A$6,0) -> 86392
B56: - полка навесная стеклянная на прямых витринах | D56: Octava XL SN 1500 | F56: -6…+6 | G56: 1.15 | H56: 1518х1069х1214 | I56: 91335.024 | J56: =ROUND(I56*(1-$E$3)/Лист2!$A$6,0) -> 91335
B57: - ёмкость для сбора талой воды | D57: Octava XL SN 1800 | F57: -6…+6 | G57: 1.4 | H57: 1818х1069х1214 | I57: 106444.184 | J57: =ROUND(I57*(1-$E$3)/Лист2!$A$6,0) -> 106444
D58: Низкотемпературные, ВПН
D59: Octava XL М 1200 | F59: -15…-18 | G59: 0.85 | H59: 1218х1093х1300 | I59: 106451.268 | J59: =ROUND(I59*(1-$E$3)/Лист2!$A$6,0) -> 106451
D60: Octava XL М 1500 | F60: -15…-18 | G60: 1.1 | H60: 1518х1093х1300 | I60: 123157.364 | J60: =ROUND(I60*(1-$E$3)/Лист2!$A$6,0) -> 123157
D61: Octava XL М 1800 | F61: -15…-18 | G61: 1.3 | H61: 1818х1093х1300 | I61: 135163.732 | J61: =ROUND(I61*(1-$E$3)/Лист2!$A$6,0) -> 135164
D62: Кассовые прилавки
D63: Octava XL КНП 620 ББ | F63: - | G63: - | H63: 600х1069х940 | I63: 22958.232 | J63: =ROUND(I63*(1-$E$3)/Лист2!$A$6,0) -> 22958
A64: 4 | B64: Витрины серии GAMMA-2, глубина выкладки 760 мм, стандартный Ral 3004. | I64: Опции Gamma-2
B65: Стандартная комплектация: | D65: Среднетемпературные, ВПС | K65: *нажмите чтобы перейти в список опций
B66: - агрегат | D66: Gamma-2 1200 | E66: с боковинами | F66: 0…+7 | G66: 0.85 | H66: 1218х1093х1300 | I66: 78658.712 | J66: =ROUND(I66*(1-$E$3)/Лист2!$A$6,0) -> 78659
B67: - испаритель | E67: без боковин | H67: 1118х1093х1300 | I67: 67737.208 | J67: =ROUND(I67*(1-$E$3)/Лист2!$A$6,0) -> 67737
B68: - шторки из оргстекла | D68: Gamma-2 1500 | E68: с боковинами | F68: 0…+7 | G68: 1.1 | H68: 1518х1093х1300 | I68: 83823.96 | J68: =ROUND(I68*(1-$E$3)/Лист2!$A$6,0) -> 83824
B69: - комплект боковин и боковых стекол | E69: без боковин | H69: 1418х1093х1300 | I69: 72903.468 | J69: =ROUND(I69*(1-$E$3)/Лист2!$A$6,0) -> 72903
B70: - комплект фронтальных стекол | D70: Gamma-2 1800 | E70: с боковинами | F70: 0…+7 | G70: 1.3 | H70: 1818х1093х1300 | I70: 98442.3 | J70: =ROUND(I70*(1-$E$3)/Лист2!$A$6,0) -> 98442
B71: - экспозиционные полки из шлифованной стали | E71: без боковин | H71: 1718х1093х1300 | I71: 87193.92 | J71: =ROUND(I71*(1-$E$3)/Лист2!$A$6,0) -> 87194
B72: - ёмкость для сбора талой воды | D72: Средне-низкотемпературные, ВПСН
B73: - светильник с люминесцентной лампой | D73: Gamma-2 SN 1200 | E73: с боковинами | F73: -6…+6 | G73: 0.85 | H73: 1218х1093х1300 | I73: 88611.732 | J73: =ROUND(I73*(1-$E$3)/Лист2!$A$6,0) -> 88612
B74: - электронный пульт управления | E74: без боковин | H74: 1118х1093х1300 | I74: 77363.352 | J74: =ROUND(I74*(1-$E$3)/Лист2!$A$6,0) -> 77363
B75: - деревянная тара | D75: Gamma-2 SN 1500 | E75: с боковинами | F75: -6…+6 | G75: 1.1 | H75: 1518х1093х1300 | I75: 99219.516 | J75: =ROUND(I75*(1-$E$3)/Лист2!$A$6,0) -> 99220
E76: без боковин | H76: 1418х1093х1300 | I76: 87971.136 | J76: =ROUND(I76*(1-$E$3)/Лист2!$A$6,0) -> 87971
D77: Gamma-2 SN 1800 | E77: с боковинами | F77: -6…+6 | G77: 1.3 | H77: 1818х1093х1300 | I77: 113040.4 | J77: =ROUND(I77*(1-$E$3)/Лист2!$A$6,0) -> 113040
E78: без боковин | H78: 1718х1093х1300 | I78: 101791.008 | J78: =ROUND(I78*(1-$E$3)/Лист2!$A$6,0) -> 101791
D79: Низкотемпературные, ВПН
D80: Gamma-2 М 1200 | E80: с боковинами | F80: от -18 | G80: 0.85 | H80: 1218х1093х1300 | I80: 109385.056 | J80: =ROUND(I80*(1-$E$3)/Лист2!$A$6,0) -> 109385
E81: без боковин | H81: 1118х1093х1300 | I81: 97963.624 | J81: =ROUND(I81*(1-$E$3)/Лист2!$A$6,0) -> 97964
D82: Gamma-2 М 1500 | E82: с боковинами | F82: от -18 | G82: 1.1 | H82: 1518х1093х1300 | I82: 125063.972 | J82: =ROUND(I82*(1-$E$3)/Лист2!$A$6,0) -> 125064
E83: без боковин | H83: 1418х1093х1300 | I83: 113642.54 | J83: =ROUND(I83*(1-$E$3)/Лист2!$A$6,0) -> 113643
D84: Gamma-2 М 1800 | E84: с боковинами | F84: от -18 | G84: 1.3 | H84: 1818х1093х1300 | I84: 137704.864 | J84: =ROUND(I84*(1-$E$3)/Лист2!$A$6,0) -> 137705
E85: без боковин | H85: 1718х1093х1300 | I85: 126283.432 | J85: =ROUND(I85*(1-$E$3)/Лист2!$A$6,0) -> 126283
D86: Угловые витрины (ВПС) и кассовые прилавки
D87: Gamma-2 OC 90 (угол внеш.) | E87: с боковинами | F87: 0…+7 | G87: 0.92 | H87: 1180х1180х1300 | I87: 114922.72 | J87: =ROUND(I87*(1-$E$3)/Лист2!$A$6,0) -> 114923
E88: без боковин | H88: 1130х1130х1300 | I88: 103673.328 | J88: =ROUND(I88*(1-$E$3)/Лист2!$A$6,0) -> 103673
D89: Gamma-2 IC 90 (угол внутр.) | E89: с боковинами | F89: 0…+7 | G89: 0.74 | H89: 1355х1355х1300 | I89: 127136.548 | J89: =ROUND(I89*(1-$E$3)/Лист2!$A$6,0) -> 127137
E90: без боковин | H90: 1305х1305х1300 | I90: 115888.168 | J90: =ROUND(I90*(1-$E$3)/Лист2!$A$6,0) -> 115888
D91: Gamma-2 КНП 1020 | E91: с боковинами | F91: - | G91: - | H91: 1000х1100х940 | I91: 31366.94 | J91: =ROUND(I91*(1-$E$3)/Лист2!$A$6,0) -> 31367
D92: Gamma-2 КНП 920 ББ | E92: без боковин | F92: - | G92: - | H92: 920х1100х940 | I92: 25534.784 | J92: =ROUND(I92*(1-$E$3)/Лист2!$A$6,0) -> 25535
D93: Gamma-2 КНП 800 | E93: с боковинами | F93: - | G93: - | H93: 800х1100х940 | I93: 29661.72 | J93: =ROUND(I93*(1-$E$3)/Лист2!$A$6,0) -> 29662
D94: Gamma-2 КНП 700 ББ | E94: без боковин | F94: - | G94: - | H94: 700х1100х940 | I94: 22134.464 | J94: =ROUND(I94*(1-$E$3)/Лист2!$A$6,0) -> 22134
D95: Gamma-2 КНП 600 | E95: с боковинами | F95: - | G95: - | H95: 600х1100х940 | I95: 27747.016 | J95: =ROUND(I95*(1-$E$3)/Лист2!$A$6,0) -> 27747
D96: Gamma-2 КНП 600 ББ | E96: без боковин | F96: - | G96: - | H96: 600х1100х940 | I96: 20861.368 | J96: =ROUND(I96*(1-$E$3)/Лист2!$A$6,0) -> 20861
D97: Gamma-2 КНП 500 ББ | E97: без боковин | F97: - | G97: - | H97: 500х1100х940 | I97: 18162.364 | J97: =ROUND(I97*(1-$E$3)/Лист2!$A$6,0) -> 18162
D98: Gamma-2 ОС КНП (угол внеш.) | E98: с боковинами | F98: - | G98: - | H98: 1145х1145х930 | I98: 41676.184 | J98: =ROUND(I98*(1-$E$3)/Лист2!$A$6,0) -> 41676
E99: без боковин | H99: 1095х1095х930 | I99: 32093.556 | J99: =ROUND(I99*(1-$E$3)/Лист2!$A$6,0) -> 32094
D100: Gamma-2 IC КНП (угол внутр.) | E100: с боковинами | F100: - | G100: - | H100: 1275х1275х930 | I100: 40947.544 | J100: =ROUND(I100*(1-$E$3)/Лист2!$A$6,0) -> 40948
E101: без боковин | H101: 1225х1225х930 | I101: 31365.928 | J101: =ROUND(I101*(1-$E$3)/Лист2!$A$6,0) -> 31366
A102: 5 | B102: Витрины серии GAMMA-2 LED, глубина выкладки 760 мм, стандартный Ral 3004.
B103: Стандартная комплектация: | D103: Среднетемпературные
B104: - агрегат | D104: Gamma-2 1200 LED | E104: с боковинами | F104: 0…+7 | G104: 0.85 | H104: 1218х1093х1300 | I104: 79279 | J104: =ROUND(I104*(1-$E$3)/Лист2!$A$6,0) -> 79279
B105: - испаритель | E105: без боковин | H105: 1118х1093х1300 | I105: 68488 | J105: =ROUND(I105*(1-$E$3)/Лист2!$A$6,0) -> 68488
B106: - шторки из оргстекла | D106: Gamma-2 1500 LED | E106: с боковинами | F106: 0…+7 | G106: 1.1 | H106: 1518х1093х1300 | I106: 84487 | J106: =ROUND(I106*(1-$E$3)/Лист2!$A$6,0) -> 84487
B107: - комплект боковин и боковых стекол | E107: без боковин | H107: 1418х1093х1300 | I107: 73696 | J107: =ROUND(I107*(1-$E$3)/Лист2!$A$6,0) -> 73696
B108: - комплект фронтальных стекол | D108: Gamma-2 1800 LED | E108: с боковинами | F108: 0…+7 | G108: 1.3 | H108: 1818х1093х1300 | I108: 99221 | J108: =ROUND(I108*(1-$E$3)/Лист2!$A$6,0) -> 99221
B109: - экспозиционные полки из шлифованной стали | E109: без боковин | H109: 1718х1093х1300 | I109: 88105 | J109: =ROUND(I109*(1-$E$3)/Лист2!$A$6,0) -> 88105
B110: - ёмкость для сбора талой воды | D110: Средне-низкотемпературные
B111: - светодиодная подсветка | D111: Gamma-2 SN 1200 LED | E111: с боковинами | F111: -6…+6 | G111: 0.85 | H111: 1218х1093х1300 | I111: 89313 | J111: =ROUND(I111*(1-$E$3)/Лист2!$A$6,0) -> 89313
B112: - электронный пульт управления | E112: без боковин | H112: 1118х1093х1300 | I112: 78198 | J112: =ROUND(I112*(1-$E$3)/Лист2!$A$6,0) -> 78198
B113: - деревянная тара | D113: Gamma-2 SN 1500 LED | E113: с боковинами | F113: -6…+6 | G113: 1.1 | H113: 1518х1093х1300 | I113: 100002 | J113: =ROUND(I113*(1-$E$3)/Лист2!$A$6,0) -> 100002
E114: без боковин | H114: 1418х1093х1300 | I114: 88888 | J114: =ROUND(I114*(1-$E$3)/Лист2!$A$6,0) -> 88888
D115: Gamma-2 SN 1800 LED | E115: с боковинами | F115: -6…+6 | G115: 1.3 | H115: 1818х1093х1300 | I115: 113934 | J115: =ROUND(I115*(1-$E$3)/Лист2!$A$6,0) -> 113934
E116: без боковин | H116: 1718х1093х1300 | I116: 102818 | J116: =ROUND(I116*(1-$E$3)/Лист2!$A$6,0) -> 102818
D117: Низкотемпературные
D118: Gamma-2 М 1200 LED | E118: с боковинами | F118: от -18 | G118: 0.85 | H118: 1218х1093х1300 | I118: 110250 | J118: =ROUND(I118*(1-$E$3)/Лист2!$A$6,0) -> 110250
E119: без боковин | H119: 1118х1093х1300 | I119: 98964 | J119: =ROUND(I119*(1-$E$3)/Лист2!$A$6,0) -> 98964
D120: Gamma-2 М 1500 LED | E120: с боковинами | F120: от -18 | G120: 1.1 | H120: 1518х1093х1300 | I120: 126052 | J120: =ROUND(I120*(1-$E$3)/Лист2!$A$6,0) -> 126052
E121: без боковин | H121: 1418х1093х1300 | I121: 114766 | J121: =ROUND(I121*(1-$E$3)/Лист2!$A$6,0) -> 114766
D122: Gamma-2 М 1800 LED | E122: с боковинами | F122: от -18 | G122: 1.3 | H122: 1818х1093х1300 | I122: 138793 | J122: =ROUND(I122*(1-$E$3)/Лист2!$A$6,0) -> 138793
E123: без боковин | H123: 1718х1093х1300 | I123: 127507 | J123: =ROUND(I123*(1-$E$3)/Лист2!$A$6,0) -> 127507
A124: 6 | B124: Витрины серии GAMMA-2 FISH, глубина выкладки 760 мм, стандартный Ral 3004.
D125: Средне-низкотемпературные
B126: - усиленный поддон для льда и рыбы | D126: Gamma-2 SN FISH 1200 | E126: с боковинами | F126: -6…+6 | G126: 0.85 | H126: 1218х1093х1300 | I126: 97693 | J126: =ROUND(I126*(1-$E$3)/Лист2!$A$6,0) -> 97693
B127: - коррозионностойкая решётка защиты испарителя | E127: без боковин | H127: 1118х1093х1300 | I127: 86578 | J127: =ROUND(I127*(1-$E$3)/Лист2!$A$6,0) -> 86578
B128: - увеличенный слив (Д 40 мм) | D128: Gamma-2 SN FISH 1500 | E128: с боковинами | F128: -6…+6 | G128: 1.1 | H128: 1518х1093х1300 | I128: 112989 | J128: =ROUND(I128*(1-$E$3)/Лист2!$A$6,0) -> 112989
E129: без боковин | H129: 1418х1093х1300 | I129: 101874 | J129: =ROUND(I129*(1-$E$3)/Лист2!$A$6,0) -> 101874
D130: Gamma-2 SN FISH 1800 | E130: с боковинами | F130: -6…+6 | G130: 1.3 | H130: 1818х1093х1300 | I130: 126856 | J130: =ROUND(I130*(1-$E$3)/Лист2!$A$6,0) -> 126856
E131: без боковин | H131: 1718х1093х1300 | I131: 115742 | J131: =ROUND(I131*(1-$E$3)/Лист2!$A$6,0) -> 115742
A132: 5 | B132: Витрины серии GAMMA QUADRO LED, глубина выкладки 760 мм, стандартный Ral 9016/7016. | I132: Опции Gamma Quadro
B133: Стандартная комплектация: | D133: Среднетемпературные, ВПС | K133: *нажмите чтобы перейти в список опций
B134: - агрегат | D134: Gamma Quadro 1200 LED | E134: с боковинами | F134: 0…+7 | G134: 0.85 | H134: 1218х1087х1209 | I134: 95003.524 | J134: =ROUND(I134*(1-$E$3)/Лист2!$A$6,0) -> 95004
B135: - испаритель | E135: без боковин | H135: 1118х1087х1209 | I135: 83771.336 | J135: =ROUND(I135*(1-$E$3)/Лист2!$A$6,0) -> 83771
B136: - шторки из оргстекла | D136: Gamma Quadro 1500 LED | E136: с боковинами | F136: 0…+7 | G136: 1.1 | H136: 1518х1087х1209 | I136: 101552.176 | J136: =ROUND(I136*(1-$E$3)/Лист2!$A$6,0) -> 101552
B137: - комплект боковин и боковых стекол | E137: без боковин | H137: 1418х1087х1209 | I137: 90319.988 | J137: =ROUND(I137*(1-$E$3)/Лист2!$A$6,0) -> 90320
B138: - комплект фронтальных стекол | D138: Gamma Quadro 1800 LED | E138: с боковинами | F138: 0…+7 | G138: 1.3 | H138: 1818х1087х1209 | I138: 122444.916 | J138: =ROUND(I138*(1-$E$3)/Лист2!$A$6,0) -> 122445
B139: - экспозиционные полки из шлифованной стали | E139: без боковин | H139: 1718х1087х1209 | I139: 110651.068 | J139: =ROUND(I139*(1-$E$3)/Лист2!$A$6,0) -> 110651
B140: - ёмкость для сбора талой воды | D140: Средне-низкотемпературные, ВПСН
B141: - светодиодная подсветка | D141: Gamma Quadro SN 1200 LED | E141: с боковинами | F141: -6…+6 | G141: 0.85 | H141: 1218х1087х1209 | I141: 103358.596 | J141: =ROUND(I141*(1-$E$3)/Лист2!$A$6,0) -> 103359
B142: - электронный пульт управления | E142: без боковин | H142: 1118х1087х1209 | I142: 91563.736 | J142: =ROUND(I142*(1-$E$3)/Лист2!$A$6,0) -> 91564
B143: - деревянная тара | D143: Gamma Quadro SN 1500 LED | E143: с боковинами | F143: -6…+6 | G143: 1.1 | H143: 1518х1087х1209 | I143: 119079.004 | J143: =ROUND(I143*(1-$E$3)/Лист2!$A$6,0) -> 119079
E144: без боковин | H144: 1418х1087х1209 | I144: 107285.156 | J144: =ROUND(I144*(1-$E$3)/Лист2!$A$6,0) -> 107285
D145: Gamma Quadro SN 1800 LED | E145: с боковинами | F145: -6…+6 | G145: 1.3 | H145: 1818х1087х1209 | I145: 135204.212 | J145: =ROUND(I145*(1-$E$3)/Лист2!$A$6,0) -> 135204
E146: без боковин | H146: 1718х1087х1209 | I146: 123409.352 | J146: =ROUND(I146*(1-$E$3)/Лист2!$A$6,0) -> 123409
D147: Низкотемпературные, ВПН
D148: Gamma Quadro М 1200 LED | E148: с боковинами | F148: от -18 | G148: 0.85 | H148: 1218х1087х1209 | I148: 118131.772 | J148: =ROUND(I148*(1-$E$3)/Лист2!$A$6,0) -> 118132
E149: без боковин | H149: 1118х1087х1209 | I149: 106155.764 | J149: =ROUND(I149*(1-$E$3)/Лист2!$A$6,0) -> 106156
D150: Gamma Quadro М 1500 LED | E150: с боковинами | F150: от -18 | G150: 1.1 | H150: 1518х1087х1209 | I150: 134814.592 | J150: =ROUND(I150*(1-$E$3)/Лист2!$A$6,0) -> 134815
E151: без боковин | H151: 1418х1087х1209 | I151: 122838.584 | J151: =ROUND(I151*(1-$E$3)/Лист2!$A$6,0) -> 122839
D152: Gamma Quadro М 1800 LED | E152: с боковинами | F152: от -18 | G152: 1.3 | H152: 1818х1087х1209 | I152: 157161.576 | J152: =ROUND(I152*(1-$E$3)/Лист2!$A$6,0) -> 157162
E153: без боковин | H153: 1718х1087х1209 | I153: 145185.568 | J153: =ROUND(I153*(1-$E$3)/Лист2!$A$6,0) -> 145186
D154: Угловые витрины (ВПС) и кассовые прилавки
D155: Gamma Quadro OC 90 LED (угол внеш.) | E155: с боковинами | F155: 0…+7 | G155: 0.92 | H155: 1180х1180х1209 | I155: 142945 | J155: =ROUND(I155*(1-$E$3)/Лист2!$A$6,0) -> 142945
E156: без боковин | H156: 1130х1130х1209 | I156: 131150.14 | J156: =ROUND(I156*(1-$E$3)/Лист2!$A$6,0) -> 131150
D157: Gamma Quadro IC 90 LED (угол внутр.) | E157: с боковинами | F157: 0…+7 | G157: 0.74 | H157: 1355х1355х1209 | I157: 142945 | J157: =ROUND(I157*(1-$E$3)/Лист2!$A$6,0) -> 142945
E158: без боковин | H158: 1305х1305х1209 | I158: 131150.14 | J158: =ROUND(I158*(1-$E$3)/Лист2!$A$6,0) -> 131150
D159: Gamma Quadro КНП 500 ББ | E159: без боковин | F159: - | G159: - | H159: 500х1087х936 | I159: 20857.32 | J159: =ROUND(I159*(1-$E$3)/Лист2!$A$6,0) -> 20857
D160: Gamma Quadro ОС КНП (угол внеш.) | E160: с боковинами | F160: - | G160: - | H160: 1145х1145х936 | I160: 47862.54 | J160: =ROUND(I160*(1-$E$3)/Лист2!$A$6,0) -> 47863
E161: без боковин | H161: 1095х1095х936 | I161: 37811.356 | J161: =ROUND(I161*(1-$E$3)/Лист2!$A$6,0) -> 37811
A162: 6 | B162: Витрины серии GAMMA Quadro LED FISH, глубина выкладки 760 мм, стандартный Ral 3004.
D163: Средне-низкотемпературные, ВПСН
B164: - усиленный поддон для льда и рыбы | D164: Gamma Quadro SN FISH 1200 LED | E164: с боковинами | F164: -6…+6 | G164: 0.85 | H164: 1218х1093х1300 | I164: 112830.916 | J164: =ROUND(I164*(1-$E$3)/Лист2!$A$6,0) -> 112831
B165: - коррозионностойкая решётка защиты испарителя | E165: без боковин | H165: 1118х1093х1300 | I165: 101036.056 | J165: =ROUND(I165*(1-$E$3)/Лист2!$A$6,0) -> 101036
B166: - увеличенный слив (Д 40 мм) | D166: Gamma Quadro SN FISH 1500 LED | E166: с боковинами | F166: -6…+6 | G166: 1.1 | H166: 1518х1093х1300 | I166: 131100.552 | J166: =ROUND(I166*(1-$E$3)/Лист2!$A$6,0) -> 131101
E167: без боковин | H167: 1418х1093х1300 | I167: 119305.692 | J167: =ROUND(I167*(1-$E$3)/Лист2!$A$6,0) -> 119306
D168: Gamma Quadro SN FISH 1800 LED | E168: с боковинами | F168: -6…+6 | G168: 1.3 | H168: 1818х1093х1300 | I168: 147717.592 | J168: =ROUND(I168*(1-$E$3)/Лист2!$A$6,0) -> 147718
E169: без боковин | H169: 1718х1093х1300 | I169: 135922.732 | J169: =ROUND(I169*(1-$E$3)/Лист2!$A$6,0) -> 135923
D170: Gamma Quadro Self 1200 (динамический холод) | E170: с боковинами | F170: 0…+7 | G170: 0.85 | H170: 1204х1096х934 | I170: 104421 | J170: =ROUND(I170*(1-$E$3)/Лист2!$A$6,0) -> 104421
A176: 7 | B176: Витрины серии Sonata Quadro, глубина выкладки 760 мм, стандартный Ral 7016
D177: Среднетемпературные, ВПС
B178: Стандартная комплектация: | D178: Sonata Quadro 1200 LED | E178: с боковинами | F178: 0…+7 | G178: 0.85 | H178: 1218х1087х1209 | I178: 85425.956 | J178: =ROUND(I178*(1-$E$3)/Лист2!$A$6,0) -> 85426
B179: - агрегат | D179: Sonata Quadro 1500 LED | E179: с боковинами | F179: 0…+7 | G179: 1.1 | H179: 1518х1087х1209 | I179: 98630.532 | J179: =ROUND(I179*(1-$E$3)/Лист2!$A$6,0) -> 98631
B180: - испаритель | D180: Sonata Quadro 1800 LED | E180: с боковинами | F180: 0…+7 | G180: 1.3 | H180: 1818х1087х1209 | I180: 110507.364 | J180: =ROUND(I180*(1-$E$3)/Лист2!$A$6,0) -> 110507
B181: - шторки из оргстекла | D181: Средне-низкотемпературные, ВПСН
B182: - комплект боковин и боковых стекол | D182: Sonata Quadro SN 1200 LED | E182: с боковинами | F182: -6…+6 | G182: 0.85 | H182: 1218х1087х1209 | I182: 87276.904 | J182: =ROUND(I182*(1-$E$3)/Лист2!$A$6,0) -> 87277
B183: - комплект фронтальных стекол | D183: Sonata Quadro SN 1500 LED | E183: с боковинами | F183: -6…+6 | G183: 1.1 | H183: 1518х1087х1209 | I183: 103918.232 | J183: =ROUND(I183*(1-$E$3)/Лист2!$A$6,0) -> 103918
B184: - экспозиционные полки из шлифованной стали | D184: Sonata Quadro SN 1800 LED | E184: с боковинами | F184: -6…+6 | G184: 1.3 | H184: 1818х1087х1209 | I184: 115904.36 | J184: =ROUND(I184*(1-$E$3)/Лист2!$A$6,0) -> 115904
B185: - ёмкость для сбора талой воды | D185: Низкотемпературные, ВПН
D186: Sonata Quadro М 1200 LED | E186: с боковинами | F186: от -18 | G186: 0.85 | H186: 1218х1087х1209 | I186: 103902.04 | J186: =ROUND(I186*(1-$E$3)/Лист2!$A$6,0) -> 103902
D187: Sonata Quadro М 1500 LED | E187: с боковинами | F187: от -18 | G187: 1.1 | H187: 1518х1087х1209 | I187: 124660.184 | J187: =ROUND(I187*(1-$E$3)/Лист2!$A$6,0) -> 124660
D188: Sonata Quadro М 1800 LED | E188: с боковинами | F188: от -18 | G188: 1.3 | H188: 1818х1087х1209 | I188: 140386.664 | J188: =ROUND(I188*(1-$E$3)/Лист2!$A$6,0) -> 140387
A189: 8 | B189: Витрины настольные Vivo 1000 (статическое охлаждение, освещение нейтральное)
D190: Витрина холодильная ВПС Vivo 1000 (0..+5°С) | E190: с боковинами | F190: 0…+5 | H190: 1000x866x450 | I190: 57388 | J190: =ROUND(I190*(1-$E$3)/Лист2!$A$6,0) -> 57388
D191: Витрина холодильная ВПСН Vivo 1000 (-5..+5°С) | E191: с боковинами | F191: -5…+5 | I191: 64530 | J191: =ROUND(I191*(1-$E$3)/Лист2!$A$6,0) -> 64530
D192: Витрина тепловая ВПТ Vivo 1000 | E192: с боковинами | F192: до +65 | I192: 59895 | J192: =ROUND(I192*(1-$E$3)/Лист2!$A$6,0) -> 59895
A194: Витрины Cryspi со встроенным агрегатом. Динамическая система охлаждения
A195: - Динамическая система охлаждения; - Электронный контроллер; - Оттайка для версий ВПС - естественная, для версий ВПСН и ВПН - ТЭН (по умолчанию); - Общее освещение для версий с высоким стеклом - нейтральное (4000К); - Товарный накопитель для линейных модулей (кроме НТ); | E195: - Внутренний объем - оцинкованный металл, внутренний объем в зоне выкладки - нерж.сталь; - Ночные шторки для витрин с высоким стеклом; - Фронтальное стекло закаленное (Magnum Eco – стекло не открывается, Magnum Quadro – стекло открывается сверху-вниз без гидролифта; Magnum – стекло открывается снизу-вверх, опционально возможно применение гидролифта;) - Емкость для сбора талой воды, опционально возможно применение выпаривателя; - Деревянная усиленная упаковка;
A196: 9 | B196: Витрины серии MAGNUM ECO, глубина выкладки 860 мм, стандартный Ral 7016
B197: Стандартная комплектация: | D197: Среднетемпературные, ВПС
B198: - агрегат | D198: Magnum Eco 1250 Д | E198: с боковинами | F198: 0…+7 | G198: 1.075 | H198: 1330х1100х1225 | I198: 114997.608 | J198: =ROUND(I198*(1-$E$3)/Лист2!$A$6,0) -> 114998
B199: - боковая панель со стеклом правая/левая | E199: без боковин | H199: 1250х1100х1225 | I199: 100590.776 | J199: =ROUND(I199*(1-$E$3)/Лист2!$A$6,0) -> 100591
B200: - электронный пульт управления | D200: Magnum Eco 1880 Д | E200: с боковинами | F200: 0…+7 | G200: 1.62 | H200: 1960х1100х1225 | I200: 145826.164 | J200: =ROUND(I200*(1-$E$3)/Лист2!$A$6,0) -> 145826
B201: - испаритель | E201: без боковин | H201: 1880х1100х1225 | I201: 131419.332 | J201: =ROUND(I201*(1-$E$3)/Лист2!$A$6,0) -> 131419
B202: - электрооттайка испарителя (SN/F) | D202: Magnum Eco 2500 Д | E202: с боковинами | F202: 0…+7 | G202: 2.15 | H202: 2580х1100х1225 | I202: 181377.724 | J202: =ROUND(I202*(1-$E$3)/Лист2!$A$6,0) -> 181378
B203: - экспозиционные полки (нерж. сталь) | E203: без боковин | H203: 2500х1100х1225 | I203: 166970.892 | J203: =ROUND(I203*(1-$E$3)/Лист2!$A$6,0) -> 166971
B204: - светильник с люминисцентной лампой (кроме SG) | D204: Magnum Eco 3750 Д | E204: с боковинами | F204: 0…+7 | G204: 3.22 | H204: 3830х1100х1225 | I204: 226774.02 | J204: =ROUND(I204*(1-$E$3)/Лист2!$A$6,0) -> 226774
B205: - ночные шторки (оргстекло) | E205: без боковин | H205: 3750х1100х1225 | I205: 212368.2 | J205: =ROUND(I205*(1-$E$3)/Лист2!$A$6,0) -> 212368
B206: - защитный экран фронтальных стекол | D206: Средне-низкотемпературные, ВПСН
B207: - ТЭНы обогрева ванны (F) | D207: Magnum Eco SN 1250 Д | E207: с боковинами | F207: -6…+6 | G207: 1.075 | H207: 1330х1100х1225 | I207: 123630.98 | J207: =ROUND(I207*(1-$E$3)/Лист2!$A$6,0) -> 123631
B208: - лотки (в ванне тепловой) 2шт. (H) | E208: без боковин | H208: 1250х1100х1225 | I208: 109224.148 | J208: =ROUND(I208*(1-$E$3)/Лист2!$A$6,0) -> 109224
B209: - бампер-отбойник из нержавеющей стали | D209: Magnum Eco SN 1880 Д | E209: с боковинами | F209: -6…+6 | G209: 1.62 | H209: 1960х1100х1225 | I209: 153991.992 | J209: =ROUND(I209*(1-$E$3)/Лист2!$A$6,0) -> 153992
B210: - деревянная упаковка | E210: без боковин | H210: 1880х1100х1225 | I210: 139585.16 | J210: =ROUND(I210*(1-$E$3)/Лист2!$A$6,0) -> 139585
D211: Magnum Eco SN 2500 Д | E211: с боковинами | F211: -6…+6 | G211: 2.15 | H211: 2580х1100х1225 | I211: 186451.892 | J211: =ROUND(I211*(1-$E$3)/Лист2!$A$6,0) -> 186452
... 99 more rows

Sheet Охлаждаемые стеллажи
G1: ЗАВОД «ОПК» Тел.: +7 (495) 987-4388 e-mail: info@cryspi.ru сайт: cryspi.ru | J1: На главную
B3: Ваша скидка: | D3: =Содержание!D2 -> 0
B4: НДС: | D4: =IF(Лист2!A1=TRUE,"С НДС","БЕЗ НДС") -> С НДС
A6: Охлаждаемые стеллажи Cryspi со встроенным агрегатом
A9: № | B9: Изображение | C9: Наименование | E9: Температурный режим,°C | F9: Площадь экспозиции, кв.м. | G9: Габариты, (LxWxH) мм | H9: Базовая цена, руб. (с НДС) | I9: =[5]Лист2!$A$5 -> Ваша цена, руб.
A11: 1 | B11: Solo L7 | H11: Опции SOLO L7 | K11: СЕЧЕНИЯ
K12: Solo L7 | O12: Solo L7 Фруктовая | S12: Solo L7 DG
A13: Стандартная комплектация стеллажа: - внутренний объем - оцинкованный металл - внутренняя поверхность ванны из оцинкованного пластификата (двойная защита от коррозии) - стандартные электродвигатели - электронный контроллер | E13: - общее освещение - нейтральное (4000К) - цифровой термометр - 5 ярусов оцинкованных полок c кронштейнами и ценникодержателями глубиной 400 мм. - оттайка горячим газом для версий с остеклением - комплект панорамных боковин - система выпаривания конденсата (выпариватель) - деревянная усиленная упаковка опционально
C14: Solo L7 Открытое исполнение (ночные шторки)
C15: Стеллаж холодильный ВПВ С (SOLO L7 1250) R290 | D15: с боковинами | E15: +1…+7 С | F15: 2.8 | G15: 1330х700х2090 | H15: 173792.3 | I15: =ROUND(H15*(1-$D$3)/Лист2!$A$6,0) -> 173792
D16: без боковин | G16: 1250х700х2090 | H16: 150239.012 | I16: =ROUND(H16*(1-$D$3)/Лист2!$A$6,0) -> 150239
C17: Стеллаж холодильный ВПВ С (SOLO L7 1500) R290 | D17: с боковинами | E17: +1…+7 С | F17: 3.36 | G17: 1580х700х2090 | H17: 200834.7 | I17: =ROUND(H17*(1-$D$3)/Лист2!$A$6,0) -> 200835
D18: без боковин | G18: 1500х700х2090 | H18: 177281.412 | I18: =ROUND(H18*(1-$D$3)/Лист2!$A$6,0) -> 177281
C19: Стеллаж холодильный ВПВ С (SOLO L7 1875) R290 | D19: с боковинами | E19: +1…+7 С | F19: 4.2 | G19: 1955х700х2090 | H19: 216175.3 | I19: =ROUND(H19*(1-$D$3)/Лист2!$A$6,0) -> 216175
D20: без боковин | G20: 1875х700х2090 | H20: 192622.012 | I20: =ROUND(H20*(1-$D$3)/Лист2!$A$6,0) -> 192622
C21: Solo L7 DG. Фронтальный блок остекления - стеклопакет (DG - Double Glass)
C22: Стеллаж холодильный ВПВ С (SOLO L7 DG 1250) R290 | D22: с боковинами | E22: -1…+5 С | F22: 2.8 | G22: 1330х700х2090 | H22: 192652.9 | I22: =ROUND(H22*(1-$D$3)/Лист2!$A$6,0) -> 192653
D23: без боковин | G23: 1250х700х2090 | H23: 169099.612 | I23: =ROUND(H23*(1-$D$3)/Лист2!$A$6,0) -> 169100
C24: Стеллаж холодильный ВПВ С (SOLO L7 DG 1500) R290 | D24: с боковинами | E24: -1…+5 С | F24: 3.36 | G24: 1580х700х2090 | H24: 209563.2 | I24: =ROUND(H24*(1-$D$3)/Лист2!$A$6,0) -> 209563
D25: без боковин | G25: 1500х700х2090 | H25: 186009.912 | I25: =ROUND(H25*(1-$D$3)/Лист2!$A$6,0) -> 186010
C26: Стеллаж холодильный ВПВ С (SOLO L7 DG 1875) R290 | D26: с боковинами | E26: -1…+5 С | F26: 4.2 | G26: 1955х700х2090 | H26: 232650 | I26: =ROUND(H26*(1-$D$3)/Лист2!$A$6,0) -> 232650
D27: без боковин | G27: 1875х700х2090 | H27: 209096.712 | I27: =ROUND(H27*(1-$D$3)/Лист2!$A$6,0) -> 209097
C28: Стеллаж холодильный ВПВ С (SOLO L7 DG 2500) R290 | D28: с боковинами | E28: -1…+5 С | F28: 5.6 | G28: 2580х700х2090 | H28: 332317.7 | I28: =ROUND(H28*(1-$D$3)/Лист2!$A$6,0) -> 332318
D29: без боковин | G29: 2500х700х2090 | H29: 308764.412 | I29: =ROUND(H29*(1-$D$3)/Лист2!$A$6,0) -> 308764
C30: (Модуль 1250 мм. - 1 дверной блок (2 двери); 1875 мм. - 1 дверной блок (3 двери); 2500 мм. - 2 дверных блока по 2 двери)
A31: 2 | B31: Solo L9 | H31: Опции SOLO L9
K32: Solo L9 | O32: Solo L9 Фруктовая | S32: Solo L9 DG
A33: Стандартная комплектация стеллажа: - внутренний объем - оцинкованный металл - внутренняя поверхность ванны из оцинкованного пластификата (двойная защита от коррозии) - стандартные вентиляторы - электронный контроллер | E33: - общее освещение - нейтральное (4000К) - цифровой термометр - 5 ярусов оцинкованных полок c кронштейнами и ценникодержателями глубиной 500 мм. - оттайка горячим газом для версий с остеклением - комплект панорамных боковин - система выпаривания конденсата (выпариватель) - деревянная усиленная упаковка опционально
C34: Solo L9 Открытое исполнение (ночные шторки)
C35: Стеллаж холодильный ВПВ С (SOLO L9 1250) R290 | D35: с боковинами | E35: +1…+7 С | F35: 3.76 | G35: 1330х910х2090 | H35: 186428 | I35: =ROUND(H35*(1-$D$3)/Лист2!$A$6,0) -> 186428
D36: без боковин | G36: 1250х910х2090 | H36: 160754.9161 | I36: =ROUND(H36*(1-$D$3)/Лист2!$A$6,0) -> 160755
C37: Стеллаж холодильный ВПВ С (SOLO L9 1500) R290 | D37: с боковинами | E37: +1…+7 С | F37: 4.51 | G37: 1580х910х2090 | H37: 209159.5 | I37: =ROUND(H37*(1-$D$3)/Лист2!$A$6,0) -> 209160
D38: без боковин | G38: 1500х910х2090 | H38: 183486.4161 | I38: =ROUND(H38*(1-$D$3)/Лист2!$A$6,0) -> 183486
C39: Стеллаж холодильный ВПВ С (SOLO L9 1875) R290 | D39: с боковинами | E39: +1…+7 С | F39: 5.63 | G39: 1955х910х2090 | H39: 231778.8 | I39: =ROUND(H39*(1-$D$3)/Лист2!$A$6,0) -> 231779
D40: без боковин | G40: 1875х910х2090 | H40: 206105.7161 | I40: =ROUND(H40*(1-$D$3)/Лист2!$A$6,0) -> 206106
C41: Solo L9 DG. Фронтальный блок остекления - стеклопакет (DG - Double Glass)
C42: Стеллаж холодильный ВПВ С (SOLO L9 DG 1250) R290 | D42: с боковинами | E42: -1…+5 С | F42: 3.76 | G42: 1330х910х2090 | H42: 208300.4 | I42: =ROUND(H42*(1-$D$3)/Лист2!$A$6,0) -> 208300
D43: без боковин | G43: 1250х910х2090 | H43: 182627.3161 | I43: =ROUND(H43*(1-$D$3)/Лист2!$A$6,0) -> 182627
C44: Стеллаж холодильный ВПВ С (SOLO L9 DG 1500) R290 | D44: с боковинами | E44: -1…+5 С | F44: 4.51 | G44: 1580х910х2090 | H44: 226563.7 | I44: =ROUND(H44*(1-$D$3)/Лист2!$A$6,0) -> 226564
D45: без боковин | G45: 1500х910х2090 | H45: 200890.6161 | I45: =ROUND(H45*(1-$D$3)/Лист2!$A$6,0) -> 200891
C46: Стеллаж холодильный ВПВ С (SOLO L9 DG 1875) R290 | D46: с боковинами | E46: -1…+5 С | F46: 5.63 | G46: 1955х910х2090 | H46: 251604.1 | I46: =ROUND(H46*(1-$D$3)/Лист2!$A$6,0) -> 251604
D47: без боковин | G47: 1875х910х2090 | H47: 225931.0161 | I47: =ROUND(H47*(1-$D$3)/Лист2!$A$6,0) -> 225931
C48: Стеллаж холодильный ВПВ С (SOLO L9 DG 2500) R290 | D48: с боковинами | E48: -1…+5 С | F48: 7.51 | G48: 2580х910х2090 | H48: 368402.1 | I48: =ROUND(H48*(1-$D$3)/Лист2!$A$6,0) -> 368402
D49: без боковин | G49: 2500х910х2090 | H49: 342729.0161 | I49: =ROUND(H49*(1-$D$3)/Лист2!$A$6,0) -> 342729
C50: (Модуль 1250 мм. - 1 дверной блок (2 двери); 1875 мм. - 1 дверной блок (3 двери); 2500 мм. - 2 дверных блока по 2 двери)
A51: 3 | B51: Solo L9 Light | H51: Опции Solo L9 Light | K51: Solo L9 Light
C53: Стандартная комплектация стеллажа: - внутренний объем - черный крашенный металл - внутренняя поверхность ванны из оцинкованного пластификата (двойная защита от коррозии) - стандартные вентиляторы - электронный контроллер - общее освещение - нейтральное (4000К) | F53: - общее освещение - нейтральное (4000К) - цифровой термометр - 4 ярусов полок c кронштейнами и ценникодержателями глубиной 500 мм. - комплект боковин глухих - емкость для сбора талой воды (выпариватель доступен опционально); - деревянная усиленная упаковка опционально
C54: Стеллаж холодильный ВПВ С (SOLO L9 LIGHT 1250) R290 | D54: с боковинами | E54: +1…+7 С | F54: 3.12 | G54: 1330х910х2090 | H54: 142115.3298 | I54: =ROUND(H54*(1-$D$3)/Лист2!$A$6,0) -> 142115
D55: без боковин | G55: 1250х910х2090 | H55: 125062.3 | I55: =ROUND(H55*(1-$D$3)/Лист2!$A$6,0) -> 125062
C56: Стеллаж холодильный ВПВ С (SOLO L9 LIGHT 1500) R290 | D56: с боковинами | E56: +1…+7 С | F56: 3.74 | G56: 1580х910х2090 | H56: 158883.7298 | I56: =ROUND(H56*(1-$D$3)/Лист2!$A$6,0) -> 158884
D57: без боковин | G57: 1500х910х2090 | H57: 141830.7 | I57: =ROUND(H57*(1-$D$3)/Лист2!$A$6,0) -> 141831
C58: Стеллаж холодильный ВПВ С (SOLO L9 LIGHT 1875) R290 | D58: с боковинами | E58: +1…+7 С | F58: 4.67 | G58: 1955х910х2090 | H58: 175916.1298 | I58: =ROUND(H58*(1-$D$3)/Лист2!$A$6,0) -> 175916
D59: без боковин | G59: 1875х910х2090 | H59: 158863.1 | I59: =ROUND(H59*(1-$D$3)/Лист2!$A$6,0) -> 158863
A60: 4 | B60: Solo SML | H60: Опции Solo SML | K60: Solo SML
C62: Стандартная комплектация стеллажа: - Внутренняя поверхность ванны из оцинкованного пластификата (двойная защита от коррозии) - стандартные вентиляторы - контроллер - общее освещение - нейтральное (4500К) - 3 яруса оцинкованных полок c кронштейнами и ценникодержателями (300, 400, 500 мм) | F62: - с автоматической системой выпаривания конденсата - Комплект ночных шторок - оттайка горячим газом - Электронный контроллер - Цифровой термометр - Без противоударного бампера - Деревянная упаковка опционально
C63: Стеллаж холодильный ВПВ С (SOLO SML 1250 Д) R290 | D63: с боковинами | E63: +1...+10 С | F63: 2.43 | G63: 1300х854х1600 | H63: 179529 | I63: =ROUND(H63*(1-$D$3)/Лист2!$A$6,0) -> 179529
C65: Стеллаж холодильный ВПВ С (SOLO SML 1250 Д) R290 ББ | D65: без боковин | E65: +1...+10 С | F65: 2.43 | G65: 1250х854х1600 | H65: 170225 | I65: =ROUND(H65*(1-$D$3)/Лист2!$A$6,0) -> 170225
C67: Стеллаж холодильный ВПВ С (SOLO SML 1875 Д) R290 | D67: с боковинами | E67: +1...+10 С | F67: 3.64 | G67: 1925х854х1600 | H67: 233387 | I67: =ROUND(H67*(1-$D$3)/Лист2!$A$6,0) -> 233387
C69: Стеллаж холодильный ВПВ С (SOLO SML 1875 Д) R290 ББ | D69: без боковин | E69: +1...+10 С | F69: 3.64 | G69: 1875х854х1600 | H69: 206130 | I69: =ROUND(H69*(1-$D$3)/Лист2!$A$6,0) -> 206130
A71: 5 | B71: UNIT L9 | H71: Опции UNIT | K71: UNIT L9
C73: Стандартная комплектация: - LED подсветка в стойках и верхняя (4000К) - Кассетный компресссорный блок EMBRACO R-290 - Дверной блок со стеклопакетом - Оцинкованные элементы внутреннего объёма - 5 ярусов оцинкованных полок с кронштейнами и ценникодержателями
C81: Стеллаж холодильный ВПВ C (Cryspi Unit L91250 Д) | D81: с боковинами | E81: 0...+2, +2...+4, +4...+6 | F81: 3.76 | G81: 1330x880x2310 | H81: По запросу
D82: без боковин | G82: 1250x880x2310
G84: НАВЕРХ

Sheet Кондитерские витрины
G1: ЗАВОД «ОПК» Тел.: +7 (495) 987-4388 e-mail: info@cryspi.ru сайт: cryspi.ru | J1: На главную
B3: Ваша скидка: | D3: =Содержание!D2 -> 0
B4: НДС: | D4: =IF(Лист2!A1=TRUE,"С НДС","БЕЗ НДС") -> С НДС
A6: Кондитерские витрины Cryspi со встроенным агрегатом
A9: № | B9: Изображение | C9: Наименование | E9: Температурный режим,°C | F9: Площадь экспозиции, кв.м. | G9: Габариты, (LxWxH) мм | H9: Базовая цена, руб. (с НДС) | I9: =[5]Лист2!$A$5 -> Ваша цена, руб.
A11: 1 | B11: ADAGIO | H11: Опции Adagio | K11: СЕЧЕНИЯ
K12: ADAGIO | P12: ADAGIO CUBE | U12: ELEGIA
A13: Стандартная комплектация: - 3 уровня навесных полок, 230, 320, 380 мм (Adagio/Adagio LX), 380 мм (Adagio Cube/Adagio LX Cube); - подсветка всех полок (нейтральный или теплый спектр) - фронтальная металическая панель - Возможно применение фронтальной панели из ЛДСП с наценкой в 4%. - Компрессор Embraco, хладагент R-290 - Электронный контроллер Carel - Цифровой термометр на фронтальной части столешницы | E13: - Оттайка испарителя естественным способом; Автоматическое выпаривание конденсата - Задняя дверца - оргстекло (Adagio), закаленный стеклопакет (Adagio LX); - Вентилируемое (динамическое) охлаждение - Внутренний объем - сталь оцинкованная - зона выкладки - сталь оцинкованна с покраской - шелкография стекол черного цвета (Ral 9005) - Деревянная упаковка;
C14: Витрины охлаждаемые, кондитерские, закаленное стекло
C15: Витрина холодильная ВПВ (ADAGIO 900 Д) | E15: +6..+12°С | F15: 1.27 | G15: 900х620х1330 | H15: 87062.2588 | I15: =ROUND(H15*(1-$D$3)/Лист2!$A$6,0) -> 87062
C16: Витрина холодильная ВПВ (ADAGIO 1300 Д) | E16: +6..+12°С | F16: 1.58 | G16: 1300Х620Х1330 | H16: 93858.3448 | I16: =ROUND(H16*(1-$D$3)/Лист2!$A$6,0) -> 93858
C17: Витрина холодильная ВПВ (ADAGIO Cube 900 Д) | E17: +6..+12°С | F17: 1.46 | G17: 900х620х1330 | H17: 87062.2588 | I17: =ROUND(H17*(1-$D$3)/Лист2!$A$6,0) -> 87062
C18: Витрина холодильная ВПВ (ADAGIO Cube 1300 Д) | E18: +6..+12°С | F18: 1.83 | G18: 1300Х620Х1330 | H18: 93858.3448 | I18: =ROUND(H18*(1-$D$3)/Лист2!$A$6,0) -> 93858
C19: Витрины охлаждаемые, кондитерские, закаленный стеклопакет
C20: Витрина холодильная ВПС (ADAGIO LX 900 Д) | E20: 0..+7°С | F20: 1.27 | G20: 900х620х1330 | H20: 114483.7144 | I20: =ROUND(H20*(1-$D$3)/Лист2!$A$6,0) -> 114484
C21: Витрина холодильная ВПС (ADAGIO LX 1300 Д) | E21: 0..+7°С | F21: 1.58 | G21: 1300Х620Х1330 | H21: 135551.0244 | I21: =ROUND(H21*(1-$D$3)/Лист2!$A$6,0) -> 135551
C22: Витрина холодильная ВПС (ADAGIO LX Cube 900 Д) | E22: 0..+7°С | F22: 1.46 | G22: 900х620х1330 | H22: 114483.7144 | I22: =ROUND(H22*(1-$D$3)/Лист2!$A$6,0) -> 114484
C23: Витрина холодильная ВПС (ADAGIO LX Cube 1300 Д) | E23: 0..+7°С | F23: 1.83 | G23: 1300Х620Х1330 | H23: 135551.0244 | I23: =ROUND(H23*(1-$D$3)/Лист2!$A$6,0) -> 135551
C24: Витрины для самообслуживания охлаждаемые, кондитерские
C25: Витрина холодильная ВПВ (ADAGIO Self 900 Д) | E25: +1..+10°С | F25: 1.27 | G25: 900х620х1330 | H25: 128138.2256 | I25: =ROUND(H25*(1-$D$3)/Лист2!$A$6,0) -> 128138
C26: Витрина холодильная ВПВ (ADAGIO Self 1300 Д) | E26: +1..+10°С | F26: 1.58 | G26: 1300Х620Х1330 | H26: 151445.294 | I26: =ROUND(H26*(1-$D$3)/Лист2!$A$6,0) -> 151445
C27: Витрина холодильная ВПВ (ADAGIO Self Cube 900 Д) | E27: +1..+10°С | F27: 1.46 | G27: 900х620х1330 | H27: 129918.2324 | I27: =ROUND(H27*(1-$D$3)/Лист2!$A$6,0) -> 129918
C28: Витрина холодильная ВПВ (ADAGIO Self Cube 1300 Д) | E28: +1..+10°С | F28: 1.83 | G28: 1300Х620Х1330 | H28: 153518.0724 | I28: =ROUND(H28*(1-$D$3)/Лист2!$A$6,0) -> 153518
C29: Витрины нейтральные, кондитерские без охлаждения для самообслуживания
C30: Витрина нейтральная ВП (ADAGIO N Self 900) | E30: - | F30: 1.27 | G30: 900х620х1330 | H30: 67483.2972 | I30: =ROUND(H30*(1-$D$3)/Лист2!$A$6,0) -> 67483
C31: Витрина нейтральная ВП (ADAGIO N Self 1300) | E31: - | F31: 1.58 | G31: 1300Х620Х1330 | H31: 75017.4348 | I31: =ROUND(H31*(1-$D$3)/Лист2!$A$6,0) -> 75017
C32: Витрина холодильная ВПВ (ADAGIO N Self Cube 900 Д) | E32: - | F32: 1.46 | G32: 900х620х1330 | H32: 69345.6808 | I32: =ROUND(H32*(1-$D$3)/Лист2!$A$6,0) -> 69346
C33: Витрина холодильная ВПВ (ADAGIO N Self Cube 1300 Д) | E33: - | F33: 1.83 | G33: 1300Х620Х1330 | H33: 73041.5048 | I33: =ROUND(H33*(1-$D$3)/Лист2!$A$6,0) -> 73042
C34: Витрины нейтральные, кондитерские без охлаждения для самообслуживания. Хлебная модификация
C35: Витрина холодильная ВПВ (ADAGIO N Self Cube 900 Д) | E35: - | F35: 1.46 | G35: 900х620х1330 | H35: 65983.8168 | I35: =ROUND(H35*(1-$D$3)/Лист2!$A$6,0) -> 65984
C36: Витрина холодильная ВПВ (ADAGIO N Self Cube 1300 Д) | E36: - | F36: 1.83 | G36: 1300Х620Х1330 | H36: 71042.1976 | I36: =ROUND(H36*(1-$D$3)/Лист2!$A$6,0) -> 71042
C37: Кассовый нейтральный прилавок (КНП)
C38: Прилавок КНП ADAGIO 600 (фронтальные панели металл) | E38: - | F38: - | G38: 600х650х906 | H38: 21916.6816 | I38: =ROUND(H38*(1-$D$3)/Лист2!$A$6,0) -> 21917
C39: Прилавок КНП ADAGIO 900 (фронтальные панели металл) | E39: - | F39: - | G39: 900Х650Х906 | H39: 26650.008 | I39: =ROUND(H39*(1-$D$3)/Лист2!$A$6,0) -> 26650
C40: Прилавок КНП ADAGIO 600 (фронтальные панели ЛДСП) | E40: - | F40: - | G40: 600х650х906 | H40: 24089.98196 | I40: =ROUND(H40*(1-$D$3)/Лист2!$A$6,0) -> 24090
C41: Прилавок КНП ADAGIO 900 (фронтальные панели ЛДСП) | E41: - | F41: - | G41: 900Х650Х906 | H41: 27892.3392 | I41: =ROUND(H41*(1-$D$3)/Лист2!$A$6,0) -> 27892
A42: 2 | B42: ELEGIA QUADRO
C44: Стандартная комплектация: - Компрессор Embraco, хладагент R-290 - стеклопакеты по периметру; | F44: - фронтальное стекло (кроме версии SELF); - выпариватель; - LED подсветка в стойках и полках - ТЭНы оттайки испарителей - Деревянная упаковка
C46: Elegia Quadro К 850 | E46: +1...+10 | F46: 1.23 | G46: 850х764х1312 | H46: 143538.032 | I46: =ROUND(H46*(1-$D$3)/Лист2!$A$6,0) -> 143538
C47: Elegia Quadro К 1000 | E47: +1...+10 | F47: 1.46 | G47: 1 000×764×1 312 | H47: 158286.92 | I47: =ROUND(H47*(1-$D$3)/Лист2!$A$6,0) -> 158287
C48: Elegia Quadro K 1250 | E48: +1...+10 | F48: 1.85 | G48: 1 250×764×1 312 | H48: 173157.248 | I48: =ROUND(H48*(1-$D$3)/Лист2!$A$6,0) -> 173157
C49: Elegia Quadro SELF 1000 (для самообслуживания) | E49: +1...+10 | F49: 1.39 | G49: 1 000×764×1 312 | H49: 158286.92 | I49: =ROUND(H49*(1-$D$3)/Лист2!$A$6,0) -> 158287
C50: Elegia Quadro SELF 1250 (для самообслуживания) | E50: +1...+10 | F50: 1.72 | G50: 1 254×764×1 312 | H50: 159010.5 | I50: =ROUND(H50*(1-$D$3)/Лист2!$A$6,0) -> 159011
C51: Прилавок КНП Elegia Quadro 600 | E51: - | F51: - | G51: 600х764х870 | H51: 25554.012 | I51: =ROUND(H51*(1-$D$3)/Лист2!$A$6,0) -> 25554
G53: НАВЕРХ

Sheet Gamma в линию (hidden)
A1: Примечания: | AY1: В содержание
A2: 1. Витрины с различными температурными режимами желательно разделять боковинами
A3: 2. В комплект герметичного разделителя входит комплект соединительный
A5: 1. Линия витрин GAMMA-2
C7: боковина | E7: GAMMA-2 ББ | P7: GAMMA-2 ББ | AA7: GAMMA-2 ББ | AL7: боковина
C12: Вариант спецификации
C13: Наименование | AT13: Кол-во
C14: Gamma-2 1200 | AA14: без боковин | AT14: 1
C15: Gamma-2 1500 | AA15: без боковин | AT15: 1
C16: Gamma-2 1800 | AA16: без боковин | AT16: 1
C17: Комплект соединительный 337.50.00.00 для ВПС/ВПСН/ВПН Gamma-2 | AT17: 2
C18: Комплект боковин 337.40.00.00 для ВПС/ВПСН Gamma 2 | AT18: 1
A21: 2. Линия витрин GAMMA-2 через герметичный разделитель
C23: боковина | E23: GAMMA-2 ББ | P23: герм.разд. | R23: GAMMA-2 ББ | AC23: герм.разд. | AE23: GAMMA-2 ББ | AP23: боковина
C28: Вариант спецификации
C29: Наименование | AT29: Кол-во
C30: Gamma-2 1200 | AA30: без боковин | AT30: 1
C31: Gamma-2 1500 | AA31: без боковин | AT31: 1
C32: Gamma-2 1800 | AA32: без боковин | AT32: 1
C33: Комплект герметичного разделителя 337.83.00.00 для ВПС/ВПСН/ВПН Gamma-2 | AT33: 2
C34: Комплект боковин 337.40.00.00 для ВПС/ВПСН Gamma 2 | AT34: 1

Sheet Низкотемпературные шкафы
G1: ЗАВОД «ОПК» Тел.: +7 (495) 987-4388 e-mail: info@cryspi.ru сайт: cryspi.ru | J1: На главную
B3: Ваша скидка: | D3: =Содержание!D2 -> 0
B4: НДС: | D4: =IF(Лист2!A1=TRUE,"С НДС","БЕЗ НДС") -> С НДС
A6: Низкотемпературные шкафы Cryspi со встроенным агрегатом
A9: № | B9: Изображение | C9: Наименование | E9: Температурный режим,°C | F9: Площадь экспозиции, кв.м. | G9: Габариты, (LxWxH) мм | H9: Базовая цена, руб. (с НДС) | I9: =[5]Лист2!$A$5 -> Ваша цена, руб.
A11: 1 | B11: Шкаф-надстройка Verona | K11: СЕЧЕНИЯ
K12: VERONA | O12: CORSA | U12: ANZIO
C13: Стандартная комплектация: - подставка с комплектом крепежа - светодиодная подсветка внутреннего объема (4500К, 6500К) без изменения цены - автоматическая оттайка горячим газом - автоматическое выпаривание конденсата - 4 уровня решетчатых полок | F13: Тип охлаждения - динамический - Климатический класс - 3 - Температура окружающей среды, С° - max +25 - Относительная влажность воздуха, % - max 60 - Хладагент - R290 - Напряжение, В - 220
C15: Шкаф низкотемпературный ШН Verona 1220 | E15: -23…-18 | F15: 1.076 | G15: 1217х750х2210 | H15: 171923 | I15: =ROUND(H15*(1-$D$3)/Лист2!$A$6,0) -> 171923
C19: Надстройка для ларя 400 л.
A20: 2 | B20: CORSA
C22: Стандартная комплектация: - подставка с комплектом крепежа - светодиодная подсветка внутреннего объема - автоматическая оттайка горячим газом - автоматическое выпаривание конденсата - 2 уровня решетчатых полок | F22: - Тип охлаждения - динамический - Климатический класс - 3 - Температура окружающей среды, С° max - +25 - Относительная влажность воздуха,% max - 60 - Хладагент - R404a - Напряжение, В - 220
C24: Шкаф низкотемпературный ШН 0,73-2,8 CORSA LT 2500 | E24: -23…-18 | F24: 2.71 | G24: 2500х1020х2480 | H24: 514935 | I24: =ROUND(H24*(1-$D$3)/Лист2!$A$6,0) -> 514935
A28: 3 | B28: ANZIO
C30: Опции: Система выпаривания конденсата + 1,5% к цене шкафа Стандартная комплектация: - светодиодная подсветка внутреннего объема (4000/6000К) верхняя и вертикальная - автоматическая оттайка горячим газом - сифон для подключения к канализации - 4 уровня решетчатых полок с ценникодержателями - базовые полки-решетки | F30: - Тип охлаждения - динамический - Климатический класс - 3 - Температура окружающей среды, С° max - +25 - Относительная влажность воздуха,% max - 60 - Хладагент - R 290 - Напряжение, В - 220
C31: Шкаф низкотемпературный ШН-1.20-4.0 ANZIO LT 2D 1562R290 | E31: -22…-18 | F31: 4 | G31: 1684х885х2210 | H31: 326348 | I31: =ROUND(H31*(1-$D$3)/Лист2!$A$6,0) -> 326348
C33: Шкаф низкотемпературный ШН 1.80-6.0 ANZIO LT 3D 2343R290 | E33: -22…-18 | F33: 6.02 | G33: 2465х885х2210 | H33: 527065 | I33: =ROUND(H33*(1-$D$3)/Лист2!$A$6,0) -> 527065
C35: Полка сетчатая навесная с кронштейнами 780x513 мм для Anzio/Milan с ограничителем (775.58.00.00) | E35: - | F35: - | G35: - | H35: 2068 | I35: =ROUND(H35*(1-$D$3)/Лист2!$A$6,0) -> 2068
C37: Ценникодержатель съемный, L=1000 мм, прозрачный, откидной (на полки, рёшётку) (845.00.00.11) | E37: - | F37: - | G37: - | H37: 158 | I37: =ROUND(H37*(1-$D$3)/Лист2!$A$6,0) -> 158
G40: НАВЕРХ

Sheet Лари ItalFrost
J1: На главную
A3: Ваша скидка: | C3: =Содержание!D2 -> 0
A4: НДС: | C4: =IF(Лист2!A1=TRUE,"С НДС","БЕЗ НДС") -> С НДС
A5: Морозильные и холодильные лари Italfrost
A7: № | B7: Изображение | C7: Наименование | E7: Температур-ный режим, °C | F7: Объем, л | G7: Габариты, (LxWxH) мм | H7: Базовая цена, руб. (с НДС) | I7: =Лист2!$A$5 -> Ваша цена, руб. | J7: Нажмите для расчета стоимости брендирования
A9: 1 | B9: Морозильные лари с гнутыми раздвижными стеклами | K9: Сечение ларей с радиусной стеклянной крышкой | V9: Сечение ларей с радиусной стеклянной крышкой и товарным накопителем
C10: CF200C | D10: без корзин | E10: -18…-25 | F10: 235 | G10: 807х662х925 | H10: 36336 | I10: =ROUND(H10*(1-$C$3)/Лист2!$A$6,0) -> 36336
D11: 3 корзины | H11: 37993 | I11: =ROUND(H11*(1-$C$3)/Лист2!$A$6,0) -> 37993
C12: CF300C | D12: без корзин | E12: -18…-25 | F12: 319 | G12: 1017х662х925 | H12: 39936 | I12: =ROUND(H12*(1-$C$3)/Лист2!$A$6,0) -> 39936
D13: 4 корзины | H13: 42144 | I13: =ROUND(H13*(1-$C$3)/Лист2!$A$6,0) -> 42144
C14: CF400C | D14: без корзин | E14: -18…-25 | F14: 398 | G14: 1217х662х925 | H14: 43299 | I14: =ROUND(H14*(1-$C$3)/Лист2!$A$6,0) -> 43299
D15: 5 корзин | H15: 46060 | I15: =ROUND(H15*(1-$C$3)/Лист2!$A$6,0) -> 46060
C16: CF500C | D16: без корзин | E16: -18…-25 | F16: 485 | G16: 1437х662х925 | H16: 47317 | I16: =ROUND(H16*(1-$C$3)/Лист2!$A$6,0) -> 47317
D17: 6 корзин | H17: 50630 | I17: =ROUND(H17*(1-$C$3)/Лист2!$A$6,0) -> 50630
C18: CF600C | D18: без корзин | E18: -18…-25 | F18: 572 | G18: 1657х662х925 | H18: 50871 | I18: =ROUND(H18*(1-$C$3)/Лист2!$A$6,0) -> 50871
D19: 7 корзин | H19: 54736 | I19: =ROUND(H19*(1-$C$3)/Лист2!$A$6,0) -> 54736
A20: 2 | B20: Морозильные лари с прямыми раздвижными стеклами
C21: CF200F | D21: без корзин | E21: -18…-25 | F21: 235 | G21: 807х662х925 | H21: 35306 | I21: =ROUND(H21*(1-$C$3)/Лист2!$A$6,0) -> 35306
D22: 3 корзины | H22: 36744 | I22: =ROUND(H22*(1-$C$3)/Лист2!$A$6,0) -> 36744
C23: CF300F | D23: без корзин | E23: -18…-25 | F23: 319 | G23: 1017х662х925 | H23: 39207 | I23: =ROUND(H23*(1-$C$3)/Лист2!$A$6,0) -> 39207
D24: 4 корзины | H24: 41126 | I24: =ROUND(H24*(1-$C$3)/Лист2!$A$6,0) -> 41126
C25: CF400F | D25: без корзин | E25: -18…-25 | F25: 398 | G25: 1217х662х925 | H25: 43172 | I25: =ROUND(H25*(1-$C$3)/Лист2!$A$6,0) -> 43172
D26: 5 корзин | H26: 45570 | I26: =ROUND(H26*(1-$C$3)/Лист2!$A$6,0) -> 45570
C27: CF500F | D27: без корзин | E27: -18…-25 | F27: 485 | G27: 1437х662х925 | H27: 47517 | I27: =ROUND(H27*(1-$C$3)/Лист2!$A$6,0) -> 47517
D28: 6 корзин | H28: 50394 | I28: =ROUND(H28*(1-$C$3)/Лист2!$A$6,0) -> 50394
C29: CF600F | D29: без корзин | E29: -18…-25 | F29: 572 | G29: 1657х662х925 | H29: 51169 | I29: =ROUND(H29*(1-$C$3)/Лист2!$A$6,0) -> 51169
D30: 7 корзин | H30: 54526 | I30: =ROUND(H30*(1-$C$3)/Лист2!$A$6,0) -> 54526
A31: К заказу доступны лари с прямой и гнутой составной короной
A32: 3 | B32: Морозильные лари с глухой крышкой
C33: CF200S | D33: без корзин | E33: -18…-25 | F33: 235 | G33: 808х743х904 | H33: 35775 | I33: =ROUND(H33*(1-$C$3)/Лист2!$A$6,0) -> 35775
D34: 1 корзина | H34: 36255 | I34: =ROUND(H34*(1-$C$3)/Лист2!$A$6,0) -> 36255 | K34: Сечение ларей с прямой стеклянной крышкой | V34: Сечение ларей с прямой стеклянной крышкой и товарным накопителем
C35: CF300S | D35: без корзин | E35: -18…-25 | F35: 319 | G35: 1018х743х904 | H35: 39110 | I35: =ROUND(H35*(1-$C$3)/Лист2!$A$6,0) -> 39110
D36: 1 корзина | H36: 39589 | I36: =ROUND(H36*(1-$C$3)/Лист2!$A$6,0) -> 39589
C37: CF400S | D37: без корзин | E37: -18…-25 | F37: 398 | G37: 1218х743х904 | H37: 46562 | I37: =ROUND(H37*(1-$C$3)/Лист2!$A$6,0) -> 46562
D38: 1 корзина | H38: 47041 | I38: =ROUND(H38*(1-$C$3)/Лист2!$A$6,0) -> 47041
C39: CF500S | D39: без корзин | E39: -18…-25 | F39: 485 | G39: 1438х743х904 | H39: 47327 | I39: =ROUND(H39*(1-$C$3)/Лист2!$A$6,0) -> 47327
D40: 1 корзина | H40: 47806 | I40: =ROUND(H40*(1-$C$3)/Лист2!$A$6,0) -> 47806
C41: CF600S | D41: без корзин | E41: -18…-25 | F41: 572 | G41: 1658х743х904 | H41: 51620 | I41: =ROUND(H41*(1-$C$3)/Лист2!$A$6,0) -> 51620
D42: 1 корзина | H42: 52099 | I42: =ROUND(H42*(1-$C$3)/Лист2!$A$6,0) -> 52099
A43: 4 | B43: Морозильные лари с глухой крышкой (крышка из нержавеющей стали)
C44: CF200S нерж | D44: без корзин | E44: -18…-25 | F44: 235 | G44: 808х743х904 | H44: 40552 | I44: =ROUND(H44*(1-$C$3)/Лист2!$A$6,0) -> 40552
D45: 1 корзина | H45: 41031 | I45: =ROUND(H45*(1-$C$3)/Лист2!$A$6,0) -> 41031
C46: CF300S нерж | D46: без корзин | E46: -18…-25 | F46: 319 | G46: 1018х743х904 | H46: 45026 | I46: =ROUND(H46*(1-$C$3)/Лист2!$A$6,0) -> 45026
D47: 1 корзина | H47: 45506 | I47: =ROUND(H47*(1-$C$3)/Лист2!$A$6,0) -> 45506
C48: CF400S нерж | D48: без корзин | E48: -18…-25 | F48: 398 | G48: 1218х743х904 | H48: 53370 | I48: =ROUND(H48*(1-$C$3)/Лист2!$A$6,0) -> 53370
D49: 1 корзина | H49: 53850 | I49: =ROUND(H49*(1-$C$3)/Лист2!$A$6,0) -> 53850
C50: CF500S нерж | D50: без корзин | E50: -18…-25 | F50: 485 | G50: 1438х743х904 | H50: 54332 | I50: =ROUND(H50*(1-$C$3)/Лист2!$A$6,0) -> 54332
D51: 1 корзина | H51: 54811 | I51: =ROUND(H51*(1-$C$3)/Лист2!$A$6,0) -> 54811
C52: CF600S нерж | D52: без корзин | E52: -18…-25 | F52: 572 | G52: 1658х743х904 | H52: 58584 | I52: =ROUND(H52*(1-$C$3)/Лист2!$A$6,0) -> 58584
D53: 1 корзина | H53: 59063 | I53: =ROUND(H53*(1-$C$3)/Лист2!$A$6,0) -> 59063
A54: 5 | B54: Морозильные лари с гнутыми раздвижными стеклами (климатический класс 4+)
C55: CFТ200C | D55: без корзин | E55: -18…-25 | F55: 235 | G55: 807х662х925 | H55: 41045 | I55: =ROUND(H55*(1-$C$3)/Лист2!$A$6,0) -> 41045
D56: 3 корзины | H56: 43220 | I56: =ROUND(H56*(1-$C$3)/Лист2!$A$6,0) -> 43220
C57: CFТ300C | D57: без корзин | E57: -18…-25 | F57: 319 | G57: 1017х662х925 | H57: 43378 | I57: =ROUND(H57*(1-$C$3)/Лист2!$A$6,0) -> 43378
D58: 4 корзины | H58: 46278 | I58: =ROUND(H58*(1-$C$3)/Лист2!$A$6,0) -> 46278 | K58: Сечение ларей с глухой крышкой | V58: Внешний вид тыльной стороны ларя с запасником
C59: CFT400C | D59: без корзин | E59: -18…-25 | F59: 398 | G59: 1217х662х925 | H59: 46595 | I59: =ROUND(H59*(1-$C$3)/Лист2!$A$6,0) -> 46595
D60: 5 корзин | H60: 50220 | I60: =ROUND(H60*(1-$C$3)/Лист2!$A$6,0) -> 50220
C61: CFТ500C | D61: без корзин | E61: -18…-25 | F61: 485 | G61: 1437х662х925 | H61: 47993 | I61: =ROUND(H61*(1-$C$3)/Лист2!$A$6,0) -> 47993
D62: 6 корзин | H62: 52343 | I62: =ROUND(H62*(1-$C$3)/Лист2!$A$6,0) -> 52343
C63: CFТ600C | D63: без корзин | E63: -18…-25 | F63: 572 | G63: 1657х662х925 | H63: 55757 | I63: =ROUND(H63*(1-$C$3)/Лист2!$A$6,0) -> 55757
D64: 7 корзин | H64: 60832 | I64: =ROUND(H64*(1-$C$3)/Лист2!$A$6,0) -> 60832
A65: 6 | B65: Морозильные лари с прямыми раздвижными стеклами (климатический класс 4+)
C66: CFТ200F | D66: без корзин | E66: -18…-25 | F66: 235 | G66: 807х662х925 | H66: 39138 | I66: =ROUND(H66*(1-$C$3)/Лист2!$A$6,0) -> 39138
D67: 3 корзины | H67: 41118 | I67: =ROUND(H67*(1-$C$3)/Лист2!$A$6,0) -> 41118
C68: CFТ300F | D68: без корзин | E68: -18…-25 | F68: 319 | G68: 1017х662х925 | H68: 43667 | I68: =ROUND(H68*(1-$C$3)/Лист2!$A$6,0) -> 43667
D69: 4 корзины | H69: 46307 | I69: =ROUND(H69*(1-$C$3)/Лист2!$A$6,0) -> 46307
C70: CFT400F | D70: без корзин | E70: -18…-25 | F70: 398 | G70: 1217х662х925 | H70: 46586 | I70: =ROUND(H70*(1-$C$3)/Лист2!$A$6,0) -> 46586
D71: 5 корзин | H71: 49886 | I71: =ROUND(H71*(1-$C$3)/Лист2!$A$6,0) -> 49886
C72: CFТ500F | D72: без корзин | E72: -18…-25 | F72: 485 | G72: 1437х662х925 | H72: 47542 | I72: =ROUND(H72*(1-$C$3)/Лист2!$A$6,0) -> 47542
D73: 6 корзин | H73: 51502 | I73: =ROUND(H73*(1-$C$3)/Лист2!$A$6,0) -> 51502
C74: CFТ600F | D74: без корзин | E74: -18…-25 | F74: 572 | G74: 1657х662х925 | H74: 56225 | I74: =ROUND(H74*(1-$C$3)/Лист2!$A$6,0) -> 56225
D75: 7 корзин | H75: 60845 | I75: =ROUND(H75*(1-$C$3)/Лист2!$A$6,0) -> 60845
A76: К заказу доступны лари с прямой и гнутой составной короной
A77: 7 | B77: Морозильные лари для мягкого мороженного (комплектация - товарный накопитель, электронный контроллер, полка навесная для установки гастроемкостей)
C78: CF300CSZ | D78: - | E78: -18…-25 | F78: 319 | G78: 1017х662х1310 | H78: 53390 | I78: =ROUND(H78*(1-$C$3)/Лист2!$A$6,0) -> 53390
C79: CF400CSZ | D79: - | E79: -18…-25 | F79: 398 | G79: 1217х662х1310 | H79: 59807 | I79: =ROUND(H79*(1-$C$3)/Лист2!$A$6,0) -> 59807
C80: CF500CSZ | D80: - | E80: -18…-25 | F80: 485 | G80: 1437х662х1310 | H80: 61205 | I80: =ROUND(H80*(1-$C$3)/Лист2!$A$6,0) -> 61205
A81: 8 | B81: Опции для ларей
C82: Корзина для ларя с гнут. стек. | D82: 087.42.00.00 | E82: - | F82: - | G82: 214х498х320
C83: Корзина для ларя с прям. стек. | D83: 086.42.00.00 | E83: - | F83: - | G83: 214х493х250
C84: Корзина для ларя с глух. крыш. | D84: 086.42.00.00 | E84: - | F84: - | G84: 214х493х250
C85: Накопитель для ларя | E85: - | F85: - | G85: -
C86: Надстройка стеклянная 1145.12.00.00-01 для ЛВН 300 Г | H86: 5650 | I86: =ROUND(H86*(1-$C$3)/Лист2!$A$6,0) -> 5650
C87: Надстройка стеклянная 1145.12.00.00-02 для ЛВН 400 Г | H87: 6150 | I87: =ROUND(H87*(1-$C$3)/Лист2!$A$6,0) -> 6150
C88: Надстройка стеклянная 1145.12.00.00-03 для ЛВН 500 Г | H88: 6880 | I88: =ROUND(H88*(1-$C$3)/Лист2!$A$6,0) -> 6880
C89: Комплект подсветки для ларя CF200C | E89: Спектр 4000К/6000К
C90: Комплект подсветки для ларя CF300C
C91: Комплект подсветки для ларя CF400C
C92: Комплект подсветки для ларя CF500C
C93: Комплект подсветки для ларя CF600C
B95: Стандартный цвет короны ларя - Серый, Красный, Синий, Голубой, Зеленый (наличие корон уточнять у менеджеров)
B96: Опционально доступны иные цвета короны - наличие уточнять у менеджеров, наценка +1,5% к цене ларя
B97: Стандартный цвет корпуса - белый (ПлRAL9003). Наценка за нестандартный цвет корпуса +1,5% к цене ларя.
H98: НАВЕРХ

Sheet Лари-бонеты Italfrost
G1: ЗАВОД «ОПК» Тел.: +7 (495) 987-4388 e-mail: info@cryspi.ru сайт: cryspi.ru | J1: На главную
B3: Ваша скидка: | D3: =Содержание!D2 -> 0
B4: НДС: | D4: =IF(Лист2!A1=TRUE,"С НДС","БЕЗ НДС") -> С НДС
A6: Двухрежимные ларь-бонеты ITALFROST
A9: № | B9: Изображение | C9: Наименование | E9: Колличество делителей/корзин | F9: Температурный режим,°C | G9: Габариты, (LxWxH) мм | H9: Базовая цена, руб. (с НДС) | I9: =[5]Лист2!$A$5 -> Ваша цена, руб.
A11: 1 | B11: ЛВН двухрежимный ITALFROST | K11: СЕЧЕНИЕ
A13: - Стандартная комплектация ЛВН Italfrost: - Корпус внешний - оцинкованный металл (RAL 9003/7016/9016); - Охлаждаемый объем - цвет решеток/делителей RAL 9003; - Компрессор Embraco, хладагент R-290, оттайка горячим газом, система выпаривания конденсата; - Электронный контроллер CAREL; | E13: - Комплект верхнего бампера (для торцевого исполенние бампер с трех сторон); - Система решеток по периметру охлаждаемого объема (1 разделитель, устанавливаемый возле агрегатного отсека во всю высоту охл.объема); - Цвет пластиковых элеметов RAL 7035 (крышка, окантовка стекла, бампер, ручки); -Деревянная обрешетка;
C15: Ларь-витрина низкотемпературный ЛВН 1850 (ЛБТ2 М 1850) | D15: С комплектом делителей (2 шт.) | F15: Возможен выбор температурного режима (НТ -18..-24 ̊С/ СТ -2..+6 ̊С) | G15: 1850х858х869 | H15: 131535 | I15: =ROUND(H15*(1-$D$3)/Лист2!$A$6,0) -> 131535
D16: С комплектом корзинами (4 шт.) | H16: 135021 | I16: =ROUND(H16*(1-$D$3)/Лист2!$A$6,0) -> 135021
C17: Ларь-витрина низкотемпературный ЛВН 1850 (ЛБ2 М 1850) | D17: С комплектом делителей (2 шт.) | G17: 1850х858х869 | H17: 125680 | I17: =ROUND(H17*(1-$D$3)/Лист2!$A$6,0) -> 125680
D18: С комплектом корзинами (4 шт.) | H18: 129166 | I18: =ROUND(H18*(1-$D$3)/Лист2!$A$6,0) -> 129166
C19: Ларь-витрина низкотемпературный ЛВН 2100 (ЛБ2 М 2100) | D19: С комплектом делителей (3 шт.) | G19: 2100х858х869 | H19: 131803 | I19: =ROUND(H19*(1-$D$3)/Лист2!$A$6,0) -> 131803
D20: С комплектом корзинами (5 шт.) | H20: 135785 | I20: =ROUND(H20*(1-$D$3)/Лист2!$A$6,0) -> 135785
C21: Ларь-витрина низкотемпературный ЛВН 2500 (ЛБ2 М 2500) | D21: С комплектом делителей (4 шт.) | G21: 2500х858х869 | H21: 136657 | I21: =ROUND(H21*(1-$D$3)/Лист2!$A$6,0) -> 136657
D22: С комплектом корзинами (6 шт.) | H22: 141135 | I22: =ROUND(H22*(1-$D$3)/Лист2!$A$6,0) -> 141135
A23: 2 | B23: ЛВН двухрежимный ITALFROST Push
A25: - Стандартная комплектация ЛВН Italfrost: - Корпус внешний - оцинкованный металл (RAL 9003/7016/9016); - Охлаждаемый объем - цвет решеток/делителей RAL 9003; - Компрессор Embraco, хладагент R-290, оттайка горячим газом, система выпаривания конденсата; - Электронный контроллер CAREL; | E25: - Комплект верхнего бампера (для торцевого исполенние бампер с трех сторон); - Система решеток по периметру охлаждаемого объема (1 разделитель, устанавливаемый возле агрегатного отсека во всю высоту охл.объема); - Цвет пластиковых элеметов RAL 7035 (крышка, окантовка стекла, бампер, ручки); - Деревянная обрешетка;
C27: Ларь-витрина низкотемпературный ЛВН 1850 (ЛБТ2 М 1850) PUSH | D27: С комплектом делителей (2 шт.) | F27: Возможен выбор температурного режима (НТ -18..-24 ̊С/ СТ -2..+6 ̊С) | G27: 1850х858х869 | H27: 131535 | I27: =ROUND(H27*(1-$D$3)/Лист2!$A$6,0) -> 131535
D28: С комплектом корзинами (4 шт.) | H28: 135021 | I28: =ROUND(H28*(1-$D$3)/Лист2!$A$6,0) -> 135021
C29: Ларь-витрина низкотемпературный ЛВН 1850 (ЛБ2 М 1850) PUSH | D29: С комплектом делителей (2 шт.) | G29: 1850х858х869 | H29: 125680 | I29: =ROUND(H29*(1-$D$3)/Лист2!$A$6,0) -> 125680
D30: С комплектом корзинами (4 шт.) | H30: 129166 | I30: =ROUND(H30*(1-$D$3)/Лист2!$A$6,0) -> 129166
C31: Ларь-витрина низкотемпературный ЛВН 2100 (ЛБ2 М 2100) PUSH | D31: С комплектом делителей (3 шт.) | G31: 2100х858х869 | H31: 131804 | I31: =ROUND(H31*(1-$D$3)/Лист2!$A$6,0) -> 131804
D32: С комплектом корзинами (5 шт.) | H32: 135786 | I32: =ROUND(H32*(1-$D$3)/Лист2!$A$6,0) -> 135786
C33: Ларь-витрина низкотемпературный ЛВН 2500 (ЛБ2 М 2500) PUSH | D33: С комплектом делителей (4 шт.) | G33: 2500х858х869 | H33: 136657 | I33: =ROUND(H33*(1-$D$3)/Лист2!$A$6,0) -> 136657
D34: С комплектом корзинами (6 шт.) | H34: 141136 | I34: =ROUND(H34*(1-$D$3)/Лист2!$A$6,0) -> 141136
A35: 3 | B35: ЛВН двухрежимный RONDO с термостатом
A37: - Стандартная комплектация ЛВН Italfrost: - Корпус внешний - оцинкованный металл (RAL 9003/7016/9016); - Охлаждаемый объем - цвет решеток/делителей RAL 9003; - Компрессор Embraco, хладагент R-290, - БЕЗ оттайки горячим газом, БЕЗ системы выпаривания конденсата, БЕЗ освещения; - Термостат (управление температурой в объеме); | E37: - БЕЗ верхнего бампера; - Система решеток по периметру охлаждаемого объема (1 разделитель, устанавливаемый возле агрегатного отсека во всю высоту охл.объема); - Возможен выбор температурного режима НТ/СТ (НТ -18..-24 ̊С/ СТ -2..+6 ̊С); - Цвет пластиковых элеметов RAL 7035 (крышка, окантовка стекла, бампер, ручки); - Деревянная обрешетка;
C39: Ларь-витрина низкотемпературный ЛВНР 1850 (ЛБТР М 1850) | D39: С комплектом делителей (2 шт.) | F39: -18..-24 ̊С | G39: 1850х858х869 | H39: 93007 | I39: =ROUND(H39*(1-$D$3)/Лист2!$A$6,0) -> 93007
D40: С комплектом корзинами (4 шт.) | H40: 96492 | I40: =ROUND(H40*(1-$D$3)/Лист2!$A$6,0) -> 96492
C41: Ларь-витрина низкотемпературный ЛВНР 1850 (ЛБР М 1850) | D41: С комплектом делителей (2 шт.) | G41: 1850х858х869 | H41: 90381 | I41: =ROUND(H41*(1-$D$3)/Лист2!$A$6,0) -> 90381
D42: С комплектом корзинами (4 шт.) | H42: 93866 | I42: =ROUND(H42*(1-$D$3)/Лист2!$A$6,0) -> 93866
C43: Ларь-витрина низкотемпературный ЛВНР 2100 (ЛБР М 2100) | D43: С комплектом делителей (3 шт.) | G43: 2100х858х869 | H43: 93757 | I43: =ROUND(H43*(1-$D$3)/Лист2!$A$6,0) -> 93757
D44: С комплектом корзинами (5 шт.) | H44: 97739 | I44: =ROUND(H44*(1-$D$3)/Лист2!$A$6,0) -> 97739
C45: Ларь-витрина низкотемпературный ЛВНР 2500 (ЛБР М 2500) | D45: С комплектом делителей (4 шт.) | G45: 2500х858х869 | H45: 108283 | I45: =ROUND(H45*(1-$D$3)/Лист2!$A$6,0) -> 108283
D46: С комплектом корзинами (6 шт.) | H46: 112762 | I46: =ROUND(H46*(1-$D$3)/Лист2!$A$6,0) -> 112762
A47: 4 | B47: ЛВН двухрежимный RONDO с контроллером
A49: - Стандартная комплектация ЛВН Italfrost: - Корпус внешний - оцинкованный металл (RAL 9003/7016/9016); - Охлаждаемый объем - цвет решеток/делителей RAL 9003; - Компрессор Embraco, хладагент R-290, - БЕЗ оттайки горячим газом, БЕЗ системы выпаривания конденсата, БЕЗ освещения; - Электронный контроллер CAREL; | E49: - БЕЗ верхнего бампера; - Система решеток по периметру охлаждаемого объема (1 разделитель, устанавливаемый возле агрегатного отсека во всю высоту охл.объема); - Возможен выбор температурного режима НТ/СТ (НТ -18..-24 ̊С/ СТ -2..+6 ̊С); - Цвет пластиковых элеметов RAL 7035 (крышка, окантовка стекла, бампер, ручки); - Деревянная обрешетка;
C51: Ларь-витрина низкотемпературный ЛВНР 1850 (ЛБТР М 1850) | D51: С комплектом делителей (2 шт.) | F51: -18..-24 ̊С | G51: 1850х858х869 | H51: 95135 | I51: =ROUND(H51*(1-$D$3)/Лист2!$A$6,0) -> 95135
D52: С комплектом корзинами (4 шт.) | H52: 98620 | I52: =ROUND(H52*(1-$D$3)/Лист2!$A$6,0) -> 98620
C53: Ларь-витрина низкотемпературный ЛВНР 1850 (ЛБР М 1850) | D53: С комплектом делителей (2 шт.) | G53: 1850х858х869 | H53: 92524 | I53: =ROUND(H53*(1-$D$3)/Лист2!$A$6,0) -> 92524
D54: С комплектом корзинами (4 шт.) | H54: 96010 | I54: =ROUND(H54*(1-$D$3)/Лист2!$A$6,0) -> 96010
C55: Ларь-витрина низкотемпературный ЛВНР 2100 (ЛБР М 2100) | D55: С комплектом делителей (3 шт.) | G55: 2100х858х869 | H55: 95884 | I55: =ROUND(H55*(1-$D$3)/Лист2!$A$6,0) -> 95884
D56: С комплектом корзинами (5 шт.) | H56: 99867 | I56: =ROUND(H56*(1-$D$3)/Лист2!$A$6,0) -> 99867
C57: Ларь-витрина низкотемпературный ЛВНР 2500 (ЛБР М 2500) | D57: С комплектом делителей (4 шт.) | G57: 2500х858х869 | H57: 110424 | I57: =ROUND(H57*(1-$D$3)/Лист2!$A$6,0) -> 110424
D58: С комплектом корзинами (6 шт.) | H58: 114902 | I58: =ROUND(H58*(1-$D$3)/Лист2!$A$6,0) -> 114902
A59: 5 | B59: КОМПЛЕКТУЮЩИЕ
A61: Бампер (Определяется харакетристикой, либо для отдельного заказа)
C62: Комплект трехстороннего нижнего бампера L=1850 для ЛВН ЛБТ
C63: Комплект трехстороннего верхнего бампера L=1850 для ЛВН ЛБТ
C64: Комплект нижнего бампера L=1850 для ЛВН ЛБ
C65: Комплект верхнего бампера L=1850 для ЛВН ЛБ
C66: Комплект нижнего бампера L=2100 для ЛВН ЛБ
C67: Комплект верхнего бампера L=2100 для ЛВН ЛБ
C68: Комплект нижнего бампера L=2500 для ЛВН ЛБ
C69: Комплект верхнего бампера L=2500 для ЛВН ЛБ
A70: Разделители и корзины (полимерное покрытие, цвет - RAL 9003)
C71: Разделитель поперечный объема 1022.45.00.00 L=1850/2100/2500 для ЛБ М
C72: Корзина увеличенная над агрегатным отсеком 1022.110.00.00-01 для ЛВН/ЛВС (ЛБ М) (Устанавливается над агрегатным отсеком, 1 шт. в ЛБ каждого типоразмера)
C73: Корзина 1022.110.00.00 для ЛВН/ЛВС (ЛБ М) (в ЛБ длиной 2500 устанавливается 5 данных корзин, в 2100 - 4 корзины, в 1850 - 3 корзины)
A74: Суперструктуры и опции
C75: Суперструктура пристенная 1022.61.00.00-02 для ЛВН/ЛВС (ЛБ М) 1850 | H75: 22961 | I75: =ROUND(H75*(1-$D$3)/Лист2!$A$6,0) -> 22961
C76: Суперструктура пристенная 1022.61.00.00 для ЛВН/ЛВС (ЛБ М) 2100 | H76: 24019 | I76: =ROUND(H76*(1-$D$3)/Лист2!$A$6,0) -> 24019
C77: Суперструктура пристенная 1022.61.00.00-01 для ЛВН/ЛВС (ЛБ М) 2500 | H77: 25516 | I77: =ROUND(H77*(1-$D$3)/Лист2!$A$6,0) -> 25516
C78: Суперструктура островная 1022.60.00.00-02 для ЛВН/ЛВС (ЛБ М) 1850 | H78: 30274 | I78: =ROUND(H78*(1-$D$3)/Лист2!$A$6,0) -> 30274
C79: Суперструктура островная 1022.60.00.00 для ЛВН/ЛВС (ЛБ М) 2100 | H79: 32302 | I79: =ROUND(H79*(1-$D$3)/Лист2!$A$6,0) -> 32302
C80: Суперструктура островная 1022.60.00.00-01 для ЛВН/ЛВС (ЛБ М) 2500 | H80: 34893 | I80: =ROUND(H80*(1-$D$3)/Лист2!$A$6,0) -> 34893
C82: Комплект подсветки прист 429.80.00.00-02 L=1850 для ЛБ М (LED, лампа Т5)
C83: Комплект подсветки прист 429.80.00.00 L=2100 для ЛБ М (LED, лампа Т5)
C84: Комплект подсветки прист 429.80.00.00-01 L=2500 для ЛБ М (LED, лампа Т5)
C85: Комплект подсветки остр суперстр 429.64.00.00-02 L=1850 для ЛБ М (LED, лампа Т5)
C86: Комплект подсветки остр суперстр 429.64.00.00 L=2100 для ЛБ М (LED, лампа Т5)
C87: Комплект подсветки остр суперстр 429.64.00.00-01 L=2500 для ЛБ М (LED, лампа Т5)
C89: Комплект ценникодержателей прист 429.70.00.00-02 L=1850 для ЛБ М
C90: Комплект ценникодержателей прист 429.70.00.00 L=2100 для ЛБ М
C91: Комплект ценникодержателей прист 429.70.00.00-01 L=2500 для ЛБ М
C92: Комплект ценникодержателей остр 429.66.00.00-02 L=1850 для ЛБ М
C93: Комплект ценникодержателей остр 429.66.00.00 L=2100 для ЛБ М
C94: Комплект ценникодержателей остр 429.66.00.00-01 L=2500 для ЛБ М
C96: Комплект ограничителей прист 429.71.00.00-02 L=1850 для ЛБ М
C97: Комплект ограничителей прист 429.71.00.00 L=2100 для ЛБ М
C98: Комплект ограничителей прист 429.71.00.00-01 L=2500 для ЛБ М
C99: Комплект ограничителей остр 429.68.00.00-02 L=1850 для ЛБ М
C100: Комплект ограничителей остр 429.68.00.00 L=2100 для ЛБ М
C101: Комплект ограничителей остр 429.68.00.00-01 L=2500 для ЛБ М
C103: Соединительный комплект спина к спине остр 1022.62.00.00-02 L=1850 для ЛБ М
C104: Соединительный комплект спина к спине остр 1022.62.00.00 L=2100 для ЛБ М
C105: Соединительный комплект спина к спине остр 1022.62.00.00-01 L=2500 для ЛБ М
C106: Воздуховод с площадкой под ценникодержатели низкий 1022.89.00.00-02 для ЛВН/ЛВС (ЛБ М) 1850
C107: Воздуховод с площадкой под ценникодержатели низкий 1022.89.00.00 для ЛВН/ЛВС (ЛБ М) 2100
C108: Воздуховод с площадкой под ценникодержатели низкий 1022.89.00.00-01 для ЛВН/ЛВС (ЛБ М) 2500
C109: Боковая заглушка к соед. комплекту «спина к спине» остр. 1022.111.00.00 для ЛВН/ЛВС (ЛБ М)
C111: Компл 3-его уровн полок прист суперстр 404.99.00.00 L=1850 для ЛБТМ (G=370 мм)
C112: Компл 3-его уровн полок прист суперстр 429.99.00.00 L=2100 для ЛБМ (G=370 мм)
C113: Компл 3-его уровн полок прист суперстр 429.100.00.00 L=2500 для ЛБМ (G=370 мм)
C114: Компл 3-его уровн полок остр суперстр 429.96.00.00 L=2100 для ЛБМ (G=370 мм)
C115: Компл 3-его уровн полок остр суперстр 429.97.00.00 L=2500 для ЛБМ (G=370 мм)
C116: Компл торц полок остр суперстр 429.102.00.00 L=2100/2500 для ЛБТМ
C117: Компл торц полукр полок остр суперстр 429.101.00.00 L=2100/2500 для ЛБТМ
G119: НАВЕРХ

Sheet Витрины Cryspi БА
I1: На главную
B3: Ваша скидка: | D3: =Содержание!D2 -> 0
B4: НДС: | D4: =IF(Лист2!A1=TRUE,"С НДС","БЕЗ НДС") -> С НДС
B7: Витрины Cryspi без агрегата
A8: № | C8: Наименование | D8: Температурный режим, C° | E8: Площадь экспозиции, кв.м. | F8: Габариты без боковин, мм (L/W/H) | G8: Базовая цена, руб. (с НДС) | H8: =[6]Лист2!$A$5 -> Ваша цена, руб.
A10: 1 | B10: Витрины серии GAMMA-2, глубина выкладки 760 мм | G10: Опции Gamma-2
C11: Среднетемпературные витрины (без боковых панелей и боковых стекол)
C12: Gamma-2 1200 БА ББ | D12: 0…+7 | E12: 0.85 | F12: 1118х1093х1300 | G12: 62205 | H12: =ROUND(G12*(1-$D$3)/Лист2!$A$6,0) -> 62205
C13: Gamma-2 1500 БА ББ | D13: 0…+7 | E13: 1.1 | F13: 1418х1093х1300 | G13: 69837 | H13: =ROUND(G13*(1-$D$3)/Лист2!$A$6,0) -> 69837
C14: Gamma-2 1800 БА ББ | D14: 0…+7 | E14: 1.3 | F14: 1718х1093х1300 | G14: 81568 | H14: =ROUND(G14*(1-$D$3)/Лист2!$A$6,0) -> 81568
C15: Средне-низкотемпературные витрины (без боковых панелей и боковых стекол)
C16: Gamma-2 SN 1200 БА ББ | D16: -6…+6 | E16: 0.85 | F16: 1118х1093х1300 | G16: 71763 | H16: =ROUND(G16*(1-$D$3)/Лист2!$A$6,0) -> 71763
C17: Gamma-2 SN 1500 БА ББ | D17: -6…+6 | E17: 1.1 | F17: 1418х1093х1300 | G17: 78951 | H17: =ROUND(G17*(1-$D$3)/Лист2!$A$6,0) -> 78951
C18: Gamma-2 SN 1800 БА ББ | D18: -6…+6 | E18: 1.3 | F18: 1718х1093х1300 | G18: 96572 | H18: =ROUND(G18*(1-$D$3)/Лист2!$A$6,0) -> 96572
C19: Низкотемпературные витрины (без боковых панелей и боковых стекол)
C20: Gamma-2 М 1200 БА ББ | D20: от -18 | E20: 0.85 | F20: 1118х1093х1300 | G20: 79144 | H20: =ROUND(G20*(1-$D$3)/Лист2!$A$6,0) -> 79144
C21: Gamma-2 М 1500 БА ББ | D21: от -18 | E21: 1.1 | F21: 1418х1093х1300 | G21: 90619 | H21: =ROUND(G21*(1-$D$3)/Лист2!$A$6,0) -> 90619
C22: Gamma-2 М 1800 БА ББ | D22: от -18 | E22: 1.3 | F22: 1718х1093х1300 | G22: 101953 | H22: =ROUND(G22*(1-$D$3)/Лист2!$A$6,0) -> 101953
C23: Угловые среднетемпературные и нейтральные витрины, кассовые прилавки
C24: Gamma-2 OC 90 (угол внеш.) БА ББ | D24: 0…+7 | E24: 0.92 | F24: 1130х1130х1300 | G24: 100060 | H24: =ROUND(G24*(1-$D$3)/Лист2!$A$6,0) -> 100060
C25: Gamma-2 IC (угол внутр.) БА ББ | D25: 0…+7 | E25: 0.74 | F25: 1295х1295х1300 | G25: 107773 | H25: =ROUND(G25*(1-$D$3)/Лист2!$A$6,0) -> 107773
A26: 2 | B26: Витрины серии GAMMA Quadro LED, глубина выкладки 760 мм | G26: Опции Gamma Quadro
C27: Среднетемпературные витрины (без боковых панелей и боковых стекол)
C28: Gamma Quadro 1200 LED БА ББ | D28: 0…+7 | E28: 0.85 | F28: 1118х1093х1300 | G28: 79164 | H28: =ROUND(G28*(1-$D$3)/Лист2!$A$6,0) -> 79164
C29: Gamma Quadro 1500 LED БА ББ | D29: 0…+7 | E29: 1.1 | F29: 1418х1093х1300 | G29: 85351 | H29: =ROUND(G29*(1-$D$3)/Лист2!$A$6,0) -> 85351
C30: Gamma Quadro 1800 LED БА ББ | D30: 0…+7 | E30: 1.3 | F30: 1718х1093х1300 | G30: 99586 | H30: =ROUND(G30*(1-$D$3)/Лист2!$A$6,0) -> 99586
C31: Средне-низкотемпературные витрины (без боковых панелей и боковых стекол)
C32: Gamma Quadro SN 1200 LED БА ББ | D32: -6…+6 | E32: 0.85 | F32: 1118х1093х1300 | G32: 82407 | H32: =ROUND(G32*(1-$D$3)/Лист2!$A$6,0) -> 82407
C33: Gamma Quadro SN 1500 LED БА ББ | D33: -6…+6 | E33: 1.1 | F33: 1418х1093х1300 | G33: 96557 | H33: =ROUND(G33*(1-$D$3)/Лист2!$A$6,0) -> 96557
C34: Gamma Quadro SN 1800 LED БА ББ | D34: -6…+6 | E34: 1.3 | F34: 1718х1093х1300 | G34: 111068 | H34: =ROUND(G34*(1-$D$3)/Лист2!$A$6,0) -> 111068
C35: Низкотемпературные витрины (без боковых панелей и боковых стекол)
C36: Gamma Quadro M 1200 LED БА ББ | D36: от -18 | E36: 0.85 | F36: 1118х1093х1300 | G36: 95541 | H36: =ROUND(G36*(1-$D$3)/Лист2!$A$6,0) -> 95541
C37: Gamma Quadro M 1500 LED БА ББ | D37: от -18 | E37: 1.1 | F37: 1418х1093х1300 | G37: 110554 | H37: =ROUND(G37*(1-$D$3)/Лист2!$A$6,0) -> 110554
C38: Gamma Quadro M 1800 LED БА ББ | D38: от -18 | E38: 1.3 | F38: 1718х1093х1300 | G38: 130667 | H38: =ROUND(G38*(1-$D$3)/Лист2!$A$6,0) -> 130667
A39: 3 | B39: Кондитерские витрины Elegia premium
C40: Elegia Premium К 1240 БА | D40: +1…+10 | E40: 1.63 | F40: 1240х928х1400 | G40: 133172 | H40: =ROUND(G40*(1-$D$3)/Лист2!$A$6,0) -> 133172
C41: Elegia Premium К 940 БА | D41: +1…+10 | E41: 1.2 | F41: 940х928х1400 | G41: 116058 | H41: =ROUND(G41*(1-$D$3)/Лист2!$A$6,0) -> 116058
A42: 4 | B42: Витрины серии MAGNUM, глубина выкладки 860 мм | G42: Опции Magnum
C43: Среднетемпературные
C44: Magnum 1250 Д БА ББ | D44: 0…+7 | E44: 1.075 | F44: 1250х1100х1225 | G44: 100098 | H44: =ROUND(G44*(1-$D$3)/Лист2!$A$6,0) -> 100098
C45: Magnum 1880 Д БА ББ | D45: 0…+7 | E45: 1.62 | F45: 1880х1100х1225 | G45: 138524 | H45: =ROUND(G45*(1-$D$3)/Лист2!$A$6,0) -> 138524
C46: Magnum 2500 Д БА ББ | D46: 0…+7 | E46: 2.15 | F46: 2500х1100х1225 | G46: 163042 | H46: =ROUND(G46*(1-$D$3)/Лист2!$A$6,0) -> 163042
C47: Magnum 3750 Д БА ББ | D47: 0…+7 | E47: 3.22 | F47: 3750х1100х1225 | G47: 208979 | H47: =ROUND(G47*(1-$D$3)/Лист2!$A$6,0) -> 208979
C48: Средне-низкотемпературные
C49: Magnum SN 1250 Д БА ББ | D49: -6…+6 | E49: 1.075 | F49: 1250х1100х1225 | G49: 109071 | H49: =ROUND(G49*(1-$D$3)/Лист2!$A$6,0) -> 109071
C50: Magnum SN 1880 Д БА ББ | D50: -6…+6 | E50: 1.62 | F50: 1880х1100х1225 | G50: 147015 | H50: =ROUND(G50*(1-$D$3)/Лист2!$A$6,0) -> 147015
C51: Magnum SN 2500 Д БА ББ | D51: -6…+6 | E51: 2.15 | F51: 2500х1100х1225 | G51: 180504 | H51: =ROUND(G51*(1-$D$3)/Лист2!$A$6,0) -> 180504
C52: Magnum SN 3750 Д БА ББ | D52: -6…+6 | E52: 3.22 | F52: 3750х1100х1225 | G52: 237610 | H52: =ROUND(G52*(1-$D$3)/Лист2!$A$6,0) -> 237610
C53: Низкотемпературные
C54: Magnum F 1250 Д БА ББ | D54: -18...-15 | E54: 1.075 | F54: 1250х1100х1225 | G54: 121438 | H54: =ROUND(G54*(1-$D$3)/Лист2!$A$6,0) -> 121438
C55: Magnum F 1880 Д БА ББ | D55: -18...-15 | E55: 1.62 | F55: 1880х1100х1225 | G55: 171642 | H55: =ROUND(G55*(1-$D$3)/Лист2!$A$6,0) -> 171642
C56: Magnum F 2500 Д БА ББ | D56: -18...-15 | E56: 2.15 | F56: 2500х1100х1225 | G56: 197823 | H56: =ROUND(G56*(1-$D$3)/Лист2!$A$6,0) -> 197823
C57: Magnum F 3750 Д БА ББ | D57: -18...-15 | E57: 3.22 | F57: 3750х1100х1225 | G57: 312364 | H57: =ROUND(G57*(1-$D$3)/Лист2!$A$6,0) -> 312364
C58: Среднетемпературные с низким стеклом
C59: Magnum SG 1250 Д БА ББ | D59: 0…+7 | E59: 1.075 | F59: 1250х1100х895 | G59: 85821 | H59: =ROUND(G59*(1-$D$3)/Лист2!$A$6,0) -> 85821
C60: Magnum SG 1880 Д БА ББ | D60: 0…+7 | E60: 1.62 | F60: 1880х1100х895 | G60: 115751 | H60: =ROUND(G60*(1-$D$3)/Лист2!$A$6,0) -> 115751
C61: Magnum SG 2500 Д БА ББ | D61: 0…+7 | E61: 2.15 | F61: 2500х1100х895 | G61: 140025 | H61: =ROUND(G61*(1-$D$3)/Лист2!$A$6,0) -> 140025
C62: Magnum SG 3750 Д БА ББ | D62: 0…+7 | E62: 3.22 | F62: 3750х1100х895 | G62: 177963 | H62: =ROUND(G62*(1-$D$3)/Лист2!$A$6,0) -> 177963
C63: Угловые витрины
C64: Magnum OC 90 Д БА ББ | D64: 0…+7 | E64: 1.192 | F64: 1360х1360х1225 | G64: 181920 | H64: =ROUND(G64*(1-$D$3)/Лист2!$A$6,0) -> 181920
C65: Magnum ОC SG 90 Д БА ББ | D65: 0…+7 | E65: 1.192 | F65: 1360х1360х897 | G65: 141064 | H65: =ROUND(G65*(1-$D$3)/Лист2!$A$6,0) -> 141064
C66: Magnum IC 90 Д БА ББ | D66: 0…+7 | E66: 1.08 | F66: 1313х1313х1225 | G66: 176639 | H66: =ROUND(G66*(1-$D$3)/Лист2!$A$6,0) -> 176639
C67: Magnum IC SG 90 Д БА ББ | D67: 0…+7 | E67: 1.08 | F67: 1313х1313х897 | G67: 166389 | H67: =ROUND(G67*(1-$D$3)/Лист2!$A$6,0) -> 166389
F69: наверх

Sheet Расчет нестанд.RAL
M1: В содержание
C2: Таблица расчета нестандартных RAL.
B4: Лари Itlafrost | C4: 1. Стандартный цвет корпуса - RAL9003; Корона - серая; Внутреннний объем - буклированный алюминий;
C6: 2. На заказ - краска нестандартного RAL с повышающим коэффициентом +1,5% к цене (см.список нестандартных RAL).
C7: 3. RAL, не вошедшие в список, являются заказными. Цена по запросу.
B9: Ларь-бонеты и суперструктуры | C9: 1. Стандартный цвет корпуса - RAL9003; Делители/корзины/решетки - RAL9003; Внутренний объем - буклированный алюминий.
C11: 2. На заказ - краска нестандартного RAL с повышающим коэффициентом +1,5% к цене (см.список нестандартных RAL). Покраска в нестандартный цвет суперструктуры - наценка на глянцевую краску +3%, на матовую и структурную краску +8%;
C12: 3. RAL, не вошедшие в список, являются заказными. Цена по запросу.
B14: Octava | C14: 1. Стандартная цветовая гамма (без изменения цены): пунцовый красный (RAL3002), синий (RAL5005), светло-зеленый (RAL 6018), желтый (RAL 1021), серый антрацит (RAL 7016). | K14: Нестандартные цвета RAL
K15: RAL | L15: Вид поверхности
C16: 2. На заказ - краска нестандартного RAL с повышающим коэффициентом +3% к цене (см.список нестандартных RAL). | K16: 1001 | L16: гладкая глянцевая
C17: 3. RAL, не вошедшие в список, являются заказными. Цена по запросу. | K17: 1013 | L17: гладкая глянцевая
K18: 1015 | L18: гладкая глянцевая
B19: Gamma | C19: 1. Стандартная цветовая гамма (без изменения цены): темно-вишневый(RAL 3004), пунцовый красный (RAL3002), синий (RAL5005), светло зеленый (RAL 6018), желтый (RAL 1021), серый антрацит (RAL 7016). | K19: 1018 | L19: гладкая глянцевая
K20: 1021 | L20: гладкая глянцевая
C21: 2. Специальное исполнение под увеличенную загрузку витрины для мясных комбинатов +7% к цене. | K21: 3000 | L21: гладкая глянцевая
C22: 3. На заказ - краска нестандартного RAL с повышающим коэффициентом +3% к цене (см.список нестандартных RAL). | K22: 3002 | L22: гладкая глянцевая
C23: 4. RAL, не вошедшие в список, являются заказными. Цена по запросу. | K23: 3004 | L23: гладкая глянцевая
K24: 5002 | L24: гладкая глянцевая
B25: Gamma Quadro | C25: 1. Стандартная цветовая гамма (без изменения цены): белый/серый антрацит (RAL 9016/7016), темно-вишневый(RAL 3004), пунцовый красный (RAL3002), синий (RAL5005), светло зеленый (RAL 6018), желтый (RAL 1021), серый антрацит (RAL 7016). Поставляется с маркировкой LX (исполнение люкс). | K25: 5005 | L25: гладкая глянцевая
K26: 5010 | L26: гладкая глянцевая
K27: 6018 | L27: гладкая глянцевая
C28: 2. На заказ - краска нестандартного RAL с повышающим коэффициентом +3% к цене (см.список нестандартных RAL). | K28: 7021 | L28: гладкая глянцевая
C29: 3. RAL, не вошедшие в список, являются заказными. Цена по запросу. | K29: 7035 | L29: гладкая глянцевая
K30: 7042 | L30: гладкая глянцевая
B31: Magnum | C31: 1. Стандартная цветовая гамма (без изменения цены): серый антрацит (RAL 7016), темно-вишневый(RAL 3004), пунцовый красный (RAL3002), синий (RAL5005), светло зеленый (RAL 6018), желтый (RAL 1021). | K31: 8011 | L31: гладкая глянцевая
K32: 8016 | L32: гладкая глянцевая
C33: 2. На заказ - краска нестандартного RAL с повышающим коэффициентом +3% к цене (см.список нестандартных RAL). | K33: 9001 | L33: гладкая глянцевая
C34: 3. RAL, не вошедшие в список, являются заказными. Цена по запросу. | K34: 9003 | L34: гладкая глянцевая
K35: 9005 | L35: гладкая глянцевая
B36: Magnum Quadro | C36: 1. Покраска в нестандартный цвет наружных панелей; Замена нерж.метал на крашен.оцинк. металл во внутреннем объеме - наценка к стоимости витрины 3 %. | K36: 9006 | L36: гладкая глянцевая
K37: 9016 | L37: гладкая глянцевая
C38: 2. Срок производства витрины при покраске в нестандартный цвет может увеличится. На 7 дней и более.
C39: Список стандартных цветов
B42: Elegia Quadro | C42: 1. Стандартная цветовая гамма: молочно-белый/черный (RAL 9010/9005).
C43: 2. На заказ - краска нестандартного RAL без дополнительной наценки (см.список нестандартных RAL).
C44: 3. RAL, не вошедшие в список, являются заказными. Цена по запросу.
B46: Adagio | C46: Покраска в нестандартный цвет наружных панелей; Покраска в нестандартный цвет внутреннего объема - наценка к стоимости витрины 3 %. Замена оцинкованного металла во внутреннем объеме на нержавеющий (базовая полка, стойки, кронштейны) - наценка к стоимости витрины 5%;
C48: 2. Срок производства витрины при покраске в нестандартный цвет может увеличится. На 7 дней и более.
C49: Список стандартных цветов
B51: SOLO | C51: 1. Стандартная цветовая гамма (без изменения цены): белый/серый антрацит (RAL 9016/7016), темно-вишневый(RAL 3004), пунцовый красный (RAL3002), синий (RAL5005), светло зеленый (RAL 6018), светло-серый (RAL7035); черный (RAL9005)
C53: 2. На заказ - стеллаж нестандартного RAL +2% к цене.
C54: 3. RAL, не вошедшие в список, являются заказными. Цена по запросу.
C55: Список стандартных цветов
B57: UNIT | C57: 1. Стандартная цветовая гамма (без изменения цены): белый/серый антрацит (RAL 9016/7016), темно-вишневый(RAL 3004), пунцовый красный (RAL3002), синий (RAL5005), светло зеленый (RAL 6018), светло-серый (RAL7035); черный (RAL9005).
C59: 2. На заказ - стеллаж нестандартного RAL +2% к цене.
C61: 3. RAL, не вошедшие в список, являются заказными. Цена по запросу.
G63: НАВЕРХ

Sheet Цвет стандарт
C1: Стандартные цвета для Magnum Quadro, Solo (L7, L9, Light, SML), Unit, Adagio;
M2: В содержание
B3: RAL 7016 | E3: RAL 9016
B11: RAL 7035 | E11: RAL 8007
B19: RAL 5005 | E19: RAL 6018
B27: RAL 3004 | E27: RAL 9005
B35: RAL 3002 | E35: RAL 5018 (Действительно только для Magnum Quadro)
B42: Производитель порошковых красок "AkzoNobel"
B44: Структура красок: глянец
B45: За дополнительную плату могут быть
B46: другие цвета красок, краски с другой структурой (матовая).
B47: В структуры шагрень и муар производитель не красит оборудование в виду их
B48: непрактичности (сложно с покрытия без специальных средств удалять загрязнения).
B52: Расшифровка характеристик ЛДСП | H52: Гикори коричневый, Н3732 | K52: Дуб Сонома
B53: Тип фронталальной панели | C53: Символ | D53: Расшифровка
B54: Фронтальная панель широкая, ЛДСП | C54: Е | D54: Гикори коричневый, Н3732
C55: F | D55: Дуб Уайт-Ривер, серо-коричневый Н1313
C56: G | D56: Дуб Сонома
B57: Фронтальная панель узкая, ЛДСП | C57: H | D57: Гикори коричневый, Н3732
C58: K | D58: Дуб Уайт-Ривер, серо-коричневый Н1313 | H58: Дуб Уайт-Ривер, серо-коричневый Н1313
C59: L | D59: Дуб Сонома
B60: Фронтальная панель широкая, ЛДСП с отбойником | C60: M | D60: Гикори коричневый, Н3732
C61: N | D61: Дуб Уайт-Ривер, серо-коричневый Н1313
C62: Q | D62: Дуб Сонома
B63: Фронтальная панель узкая, ЛДСП с отбойником | C63: R | D63: Гикори коричневый, Н3732
C64: S | D64: Дуб Уайт-Ривер, серо-коричневый Н1313
C65: U | D65: Дуб Сонома

Sheet Брендирование
K2: В содержание
A6: ПРАЙС-ЛИСТ. ДОПЛАТА ЗА БРЕНДИРОВАНИЕ ЛАРЕЙ ITALFROST
G7: НДС: | I7: =IF([2]Лист2!A1=TRUE,"С НДС","БЕЗ НДС") -> С НДС
B8: 2021-11-21 | H8: Размер вашей скидки | I8: =Содержание!D2 -> 0
A9: № | B9: Изображение | C9: Оклейка | E9: Размеры стикера, мм | H9: =CONCATENATE([2]ВАЛЮТЫ!B11," С НДС") -> Базовая цена, руб. С НДС | I9: =[2]Лист2!A5 -> Ваша цена, руб. | J9: Назад на страницу ларей
E10: Фронт | F10: Боковины | G10: Спина
A11: 1 | B11: Морозильные лари с гнутыми раздвижными стеклами
C12: CF(T)200C | D12: 1 сторона | E12: 840х710 | F12: 640х800 | G12: 840х800 | H12: 1004.916061 | I12: =ROUND(H12*(1-I8)/Лист2!$A$6,0) -> 1005
D13: 3 стороны | H13: 2234.255063 | I13: =ROUND(H13*(1-I8)/Лист2!$A$6,0) -> 2234
D14: 4 стороны | H14: 3321.459536 | I14: =ROUND(H14*(1-I8)/Лист2!$A$6,0) -> 3321
C15: CF(T)300C | D15: 1 сторона | E15: 1040х710 | F15: 640х800 | G15: 1040х800 | H15: 1169.492885 | I15: =ROUND(H15*(1-I8)/Лист2!$A$6,0) -> 1169
D16: 3 стороны | H16: 2406.312652 | I16: =ROUND(H16*(1-I8)/Лист2!$A$6,0) -> 2406
D17: 4 стороны | H17: 3683.02983 | I17: =ROUND(H17*(1-I8)/Лист2!$A$6,0) -> 3683
C18: CF(T)400C | D18: 1 сторона | E18: 1240х710 | F18: 640х800 | G18: 1240х800 | H18: 1344.044061 | I18: =ROUND(H18*(1-I8)/Лист2!$A$6,0) -> 1344
D19: 3 стороны | H19: 2493.58824 | I19: =ROUND(H19*(1-I8)/Лист2!$A$6,0) -> 2494
D20: 4 стороны | H20: 4054.574478 | I20: =ROUND(H20*(1-I8)/Лист2!$A$6,0) -> 4055
C21: CF(T)500C | D21: 1 сторона | E21: 1460х710 | F21: 640х800 | G21: 1460х800 | H21: 1533.556768 | I21: =ROUND(H21*(1-I8)/Лист2!$A$6,0) -> 1534
D22: 3 стороны | H22: 2770.376535 | I22: =ROUND(H22*(1-I8)/Лист2!$A$6,0) -> 2770
D23: 4 стороны | H23: 4451.055008 | I23: =ROUND(H23*(1-I8)/Лист2!$A$6,0) -> 4451
C24: CF(T)600C | D24: 1 сторона | E24: 1680х710 | F24: 640х800 | G24: 1680х800 | H24: 1723.069474 | I24: =ROUND(H24*(1-I8)/Лист2!$A$6,0) -> 1723
D25: 3 стороны | H25: 2949.914888 | I25: =ROUND(H25*(1-I8)/Лист2!$A$6,0) -> 2950
D26: 4 стороны | H26: 4855.016303 | I26: =ROUND(H26*(1-I8)/Лист2!$A$6,0) -> 4855
A27: 2 | B27: Морозильные лари с прямыми раздвижными стеклами
C28: CF(T)200F | D28: 1 сторона | E28: 840х810 | F28: 640х810 | G28: 840х810 | H28: 1104.65959 | I28: =ROUND(H28*(1-$I$8)/[2]СОДЕРЖАНИЕ!$C$6/[2]Лист2!$A$6,0) -> 1105
D29: 3 стороны | H29: 2348.960122 | I29: =ROUND(H29*(1-$I$8)/[2]СОДЕРЖАНИЕ!$C$6/[2]Лист2!$A$6,0) -> 2349
D30: 4 стороны | H30: 3453.619712 | I30: =ROUND(H30*(1-$I$8)/[2]СОДЕРЖАНИЕ!$C$6/[2]Лист2!$A$6,0) -> 3454
C31: CF(T)300F | D31: 1 сторона | E31: 1040х810 | F31: 640х810 | G31: 1040х810 | H31: 1301.653061 | I31: =ROUND(H31*(1-$I$8)/[2]СОДЕРЖАНИЕ!$C$6/[2]Лист2!$A$6,0) -> 1302
D32: 3 стороны | H32: 2545.953593 | I32: =ROUND(H32*(1-$I$8)/[2]СОДЕРЖАНИЕ!$C$6/[2]Лист2!$A$6,0) -> 2546
D33: 4 стороны | H33: 3842.619478 | I33: =ROUND(H33*(1-$I$8)/[2]СОДЕРЖАНИЕ!$C$6/[2]Лист2!$A$6,0) -> 3843
C34: CF(T)400F | D34: 1 сторона | E34: 1240х810 | F34: 640х810 | G34: 1240х810 | H34: 1491.165768 | I34: =ROUND(H34*(1-$I$8)/[2]СОДЕРЖАНИЕ!$C$6/[2]Лист2!$A$6,0) -> 1491
D35: 3 стороны | H35: 2742.947064 | I35: =ROUND(H35*(1-$I$8)/[2]СОДЕРЖАНИЕ!$C$6/[2]Лист2!$A$6,0) -> 2743
D36: 4 стороны | H36: 4229.125655 | I36: =ROUND(H36*(1-$I$8)/[2]СОДЕРЖАНИЕ!$C$6/[2]Лист2!$A$6,0) -> 4229
C37: CF(T)500F | D37: 1 сторона | E37: 1460х810 | F37: 640х810 | G37: 1460х810 | H37: 1705.614356 | I37: =ROUND(H37*(1-$I$8)/[2]СОДЕРЖАНИЕ!$C$6/[2]Лист2!$A$6,0) -> 1706
D38: 3 стороны | H38: 2959.889241 | I38: =ROUND(H38*(1-$I$8)/[2]СОДЕРЖАНИЕ!$C$6/[2]Лист2!$A$6,0) -> 2960
D39: 4 стороны | H39: 4655.529244 | I39: =ROUND(H39*(1-$I$8)/[2]СОДЕРЖАНИЕ!$C$6/[2]Лист2!$A$6,0) -> 4656
C40: CF(T)600F | D40: 1 сторона | E40: 1680Х810 | F40: 640х810 | G40: 1680х810 | H40: 1920.062945 | I40: =ROUND(H40*(1-$I$8)/[2]СОДЕРЖАНИЕ!$C$6/[2]Лист2!$A$6,0) -> 1920
D41: 3 стороны | H41: 3174.33783 | I41: =ROUND(H41*(1-$I$8)/[2]СОДЕРЖАНИЕ!$C$6/[2]Лист2!$A$6,0) -> 3174
D42: 4 стороны | H42: 5094.400774 | I42: =ROUND(H42*(1-$I$8)/[2]СОДЕРЖАНИЕ!$C$6/[2]Лист2!$A$6,0) -> 5094
A43: 3 | B43: Низкотемпературная надстройка над ларем 400 л. Verona
D44: 1 сторона (верхний баннер, фронтальная часть) | E44: - | F44: - | G44: - | H44: 4657.5 | I44: =ROUND(H44*(1-$I$8)/[2]СОДЕРЖАНИЕ!$C$6/[2]Лист2!$A$6,0) -> 4658
D45: 3 стороны (верхний баннер (фронтальная часть) + 2 боковины) | H45: 7917.75 | I45: =ROUND(H45*(1-$I$8)/[2]СОДЕРЖАНИЕ!$C$6/[2]Лист2!$A$6,0) -> 7918
A48: Примечание: | C48: Пленка толщиной 100 мкр + ламинация толщиной 80 мкр. Качество 720 dpi.

Sheet Лист1 (hidden)

Sheet Лист2 (hidden)
A1: TRUE
A2: Базовая цена, руб.
A3: Базовая цена, руб. б/НДС
A4: =IF(A1=TRUE,"руб.","руб. б/НДС") -> руб.
A5: =CONCATENATE("Ваша цена, ",A4) -> Ваша цена, руб.
A6: =IF(A1=TRUE,1,1.2) -> 1
A7: =IF(A1=TRUE,1,1.2) -> 1
